Workbook

Sheet Obsah
C4: Seznam
C5: Tip01 | D5: Pojmenovávání buňek
C6: Tip02 | D6: Vytvoření seznamu pro výběr
C7: Tip03 | D7: 3D vzorce
C8: Tip04 | D8: Default Values
C9: Tip05 | D9: String to Formula Parser
C10: Tip06 | D10: Searching
C11: Tip07 | D11: Goal Seeking
C12: Tip08 | D12: Zamykání
C13: Tip09 | D13: Cyklické odkazy
C14: Tip10 | D14: Small pleasures :-)
C15: Tip11 | D15: Empty values in charts
C16: Tip12 | D16: Text in the textbox
C17: Tip13 | D17: Variable source data for chart
C18: Tip14 | D18: User function FormulaToText
C19: Tip15 | D19: Add new sheet
C20: Tip16 | D20: User function FormulaToText 2
C21: Tip17 | D21: Table function
C22: Tip18 | D22: Scrollbar negative value
C23: Tip19 | D23: Payment of loan
C24: Tip20 | D24: Magic Charts
C25: Tip21 | D25: Custom format cells
C26: Tip22 | D26: User function COUNTIF(…)
C27: Tip23 | D27: Scenario manager
C28: Tip24 | D28: Podmíněné formátování
C29: Tip25 | D29: Funkce POSUN … různě velké oblasti
C30: Tip26 | D30: SUMIFS chytré sumy
C31: Tip27 | D31: Paste jako transformace se vzorci
C32: Tip28 | D32: Nepřímý odkaz
C33: Tip29 | D33: Porovnání souborů Inquire

Sheet Tip01
A1: ← | C1: Pojmenovávání buňek
C4: Pohledávky
C5: Dluh Petr | D5: 200 | E5: Kč
C6: Dluh Jan | D6: 300 | E6: Kč
C7: Dluh Kateřina | D7: 600 | E7: Kč
C8: Dluh celkem | D8: =DluhPetr+DluhJan+DluhKaterina -> 1100 | E8: Kč | F8: …z názvů buněk
C11: Dluh celkem | D11: =SUM(DluhCelkemLocal) -> 1100 | E11: Kč | F11: …z názvu oblasti
C14: - název má přednost před adresou
C15: - název se definuje vedle řádku vzorců
C16: - správa názvů na kartě Vzorce\Správce názvů
C17: - lze definovat platnost (viditelnost) názvu pro List/Sešit
C18: - pro Excel 2003 nutno platnost řešit názvem listu jako Tip01!D5

Sheet Tip02
A1: ← | C1: Vytvoření seznamu pro výběr
E5: Index : | F5: 6 | J5: ---------------------------------------------
J6: Zastřešení
J7: Základy
J8: Svis. nos. kce vnější
J9: Svis. nos. kce vnitřní
J10: Vodor. nos. kce
C11: - z karty Vývojář\Vložit\Ovládací prvky formuláře | J11: Obvodový plášť
C12: - kartu Vývojář zobrazíte z karty Soubor | J12: Výplně otvorů OP
C13: příkazem Možnosti\Přizpůsobit pás karet | J13: Povrchy podlah
C14: - pole seznamem (ComboBox) | J14: Povrchy stěn
C15: - left click… Formát ovládacího prvku | J15: Externí prvek (vítr)
C16: - záložka Ovládací prvek | J16: Externí prvek (sníh)
C17: - Vstupní oblast | J17: Externí prvek (déšť)
C18: - Propojení s buňkou | J18: Interní prvky (uživatelské vlivy)
C19: - Počet řádků seznamu

Sheet Tip03
A1: ← | C1: 3D vzorce
C4: Pohledávky | D4: Celkem | F4: Min. | H4: Max. | J4: Průměr
C5: Dluh Petr | D5: =SUM(Dluh_Petr_Rok) -> 480 | E5: Kč | F5: =MIN(Dluh_Petr_Rok) -> 120 | G5: Kč | H5: =MAX(Dluh_Petr_Rok) -> 200 | I5: Kč | J5: =AVERAGE(Dluh_Petr_Rok) -> 160 | K5: Kč
C6: Dluh Jan | D6: =SUM(Dluh_Jan_Rok) -> 970 | E6: Kč | F6: =MIN(Dluh_Jan_Rok) -> 220 | G6: Kč | H6: =MAX(Dluh_Jan_Rok) -> 450 | I6: Kč | J6: =AVERAGE(Dluh_Jan_Rok) -> 323.3333333 | K6: Kč
C7: Dluh Kateřina | D7: =SUM(Dluh_Kateřina_Rok) -> 1930 | E7: Kč | F7: =MIN(Dluh_Kateřina_Rok) -> 530 | G7: Kč | H7: =MAX(Dluh_Kateřina_Rok) -> 800 | I7: Kč | J7: =AVERAGE(Dluh_Kateřina_Rok) -> 643.3333333 | K7: Kč
C8: Dluh celkem | D8: =SUM(D5:D7) -> 3380 | E8: Kč
C11: - definovaný 3D název
C12: - Dluh_Petr_Rok definovaný jako =Led:Bre!D5
C13: - název lze použít do 3D vzorců
C14: - tyto vzorce lze použít :
C15: SUMA, PRŮMĚR, AVERAGEA, POČET,
C16: POČETA, MIN, MINA, MAX, MAXA, SOUČIN, SMODCH.VÝBĚR, STDEVA, SMODCH,
C17: STDEVPA, VAR.VÝBĚR, VARA, VAR a VARPA

Sheet Led
A1: ← | C1: Leden - pohledávky
C4: Pohledávky
C5: Dluh Petr | D5: 200 | E5: Kč
C6: Dluh Jan | D6: 300 | E6: Kč
C7: Dluh Kateřina | D7: 600 | E7: Kč
C8: Dluh celkem | D8: =SUM(D5:D7) -> 1100 | E8: Kč

Sheet Uno
A1: ← | C1: Únor - pohledávky
C4: Pohledávky
C5: Dluh Petr | D5: 160 | E5: Kč
C6: Dluh Jan | D6: 220 | E6: Kč
C7: Dluh Kateřina | D7: 530 | E7: Kč
C8: Dluh celkem | D8: =SUM(D5:D7) -> 910 | E8: Kč

Sheet Bre
A1: ← | C1: Březen - pohledávky
C4: Pohledávky
C5: Dluh Petr | D5: 120 | E5: Kč
C6: Dluh Jan | D6: 450 | E6: Kč
C7: Dluh Kateřina | D7: 800 | E7: Kč
C8: Dluh celkem | D8: =SUM(D5:D7) -> 1370 | E8: Kč

Sheet Tip04
A1: ← | C1: Default Values
C4: Vstupy výpočtu:
C5: Cyklus údržby : | E5: 2 | F5: let
C6: Cyklus obnovy : | E6: 12 | F6: let
C7: Náklady na údržbu : | E7: 0.03
C8: Náklady na obnovu : | E8: 0.25
C11: - při ladění výpočtu dojde ke změně původních hodnot
C12: - původní hodnoty jsou zapsané do procedury
C13: - nemůže dojít k jejich přepsání

Sheet Tip05
A1: ← | C1: String to Formula Parser
D6: 8*9+6= | G6: =8*9+6 -> 78
D7: 3*4+12= | G7: =3*4+12 -> 24
D8: 6-5+7= | G8: =6-5+7 -> 8

Sheet Tip06
A1: ← | C1: Searching
E6: =E9 -> Sk. 1
E7: =F9 -> Sk. 2
E8: =G9 -> Sk. 3
D9: Hodnoceni | E9: Sk. 1 | F9: Sk. 2 | G9: Sk. 3
C10: 1 | D10: Nejhorsi | E10: Calda | F10: Domkář | G10: Novy
C11: 2 | D11: Horsi | E11: Duben | F11: Enická | G11: Pospisil
C12: 3 | D12: Podprumerny | E12: Mráz | F12: Gebrt | G12: Smolova
C13: 4 | D13: Prumerny | E13: Rejmon | F13: Kozina | G13: Vild
C14: 5 | D14: Nadprumerny | E14: Svoboda | F14: Kroupa | G14: Vlcek
C15: 6 | D15: Lepsi | E15: Šilar | F15: Lemberková | G15: Janecek
C16: 7 | D16: Nejlepsi | E16: Švejková | F16: Mandelíček | G16: Mrazek
C18: Hodnoceni : | F18: Skupina :
D19: 4 | G19: 2
C20: Hledat 1. sk. | D20: =VLOOKUP($D$19,$C$9:$G$16,3) -> Rejmon
C21: Hledat 2. sk. | D21: =VLOOKUP($D$19,$C$9:$G$16,4) -> Kozina
C22: Hledat 3. sk. | D22: =VLOOKUP($D$19,$C$9:$G$16,5) -> Vild | F22: Hledat : | G22: =VLOOKUP($D$19,$C$9:$G$16,G19+2) -> Kozina
F25: Hodnoceni : | G25: =VLOOKUP(D19,C10:D16,2) -> Prumerny | H25: …pomoci =SVYHLEDAT(…;…;…)
F26: Hodnoceni : | G26: =INDEX(D10:D16,D19) -> Prumerny | H26: ...pomoci =INDEX(…;…)
F28: Hodnoc/Sk : | G28: =INDEX(E10:G16,D19,G19) -> Kozina | H28: ...pomoci =INDEX(…;…;...)
F29: Radek : | G29: =D19 -> 4
F30: Sloupec : | G30: =G19 -> 2

Sheet Tip07
A1: ← | C1: Goal Seeking
C3: Dostupné z:
C4: Karta: Data
C5: Záložka: Citlivostní analýza
C6: Příkaz: Hledání řešení
C11: Životnost | D11: 10
C12: Náklady | D12: 2000000
C13: Tempo | D13: =E13/1000 -> 0.5 | E13: 500
D15: 1 | E15: 2 | F15: 3 | G15: 4 | H15: 5 | I15: 6 | J15: 7 | K15: 8 | L15: 9 | M15: 10 | N15: 11 | O15: 12 | P15: 13 | Q15: 14 | R15: 15 | S15: 16 | T15: 17 | U15: 18 | V15: 19 | W15: 20 | X15: 21 | Y15: 22 | Z15: 23 | AA15: 24 | AB15: 25 | AC15: 26 | AD15: 27 | AE15: 28 | AF15: 29 | AG15: 30 | AH15: 31 | AI15: 32 | AJ15: 33 | AK15: 34 | AL15: 35 | AM15: 36 | AN15: 37 | AO15: 38 | AP15: 39 | AQ15: 40 | AR15: 41 | AS15: 42 | AT15: 43 | AU15: 44 | AV15: 45 | AW15: 46 | AX15: 47 | AY15: 48 | AZ15: 49 | BA15: 50
C16: =D12 -> 2000000 | D16: =$D$12*$D$13^(D15/$D$11) -> 1866065.983 | E16: =$D$12*$D$13^(E15/$D$11) -> 1741101.127 | F16: 1624504.793 | G16: 1515716.567 | H16: 1414213.562 | I16: 1319507.911 | J16: 1231144.413 | K16: 1148698.355 | L16: 1071773.463 | M16: 1000000 | N16: 933032.9915 | O16: 870550.5633 | P16: 812252.3964 | Q16: 757858.2833 | R16: 707106.7812 | S16: 659753.9554 | T16: 615572.2067 | U16: 574349.1775 | V16: 535886.7313 | W16: 500000 | X16: 466516.4958 | Y16: 435275.2816 | Z16: 406126.1982 | AA16: 378929.1416 | AB16: 353553.3906 | AC16: 329876.9777 | AD16: 307786.1033 | AE16: 287174.5887 | AF16: 267943.3656 | AG16: 250000 | AH16: 233258.2479 | AI16: 217637.6408 | AJ16: 203063.0991 | AK16: 189464.5708 | AL16: 176776.6953 | AM16: 164938.4888 | AN16: 153893.0517 | AO16: 143587.2944 | AP16: 133971.6828 | AQ16: 125000 | AR16: 116629.1239 | AS16: 108818.8204 | AT16: 101531.5495 | AU16: 94732.28541 | AV16: 88388.34765 | AW16: 82469.24442 | AX16: 76946.52583 | AY16: 71793.64719 | AZ16: 66985.84141 | BA16: 62500
C31: …slouží pro dohledání číselné hodnoty pro vytvořenou závislost
C32: …odkaz na hledanou nesmí bý vzorec
C33: …je třeba definovat funkční závislost
C34: …pro hledání se nastavuje cílová hodnota sledované funkce
I263: 230

Sheet Tip08
A1: ← | C1: Zamykání
C3: Dostupné z…
C4: Karta | E4: Příkaz
C6: Revize | E6: Zamknout sešit
E7: …nejde skrýt listy (Struktura)
E8: …nejde přejmenovat (Struktura)
E9: …nejde měnit velikost (Okna)
E10: …nejde měnit polohu (Okna)
C14: Revize | E14: Zamknout list
C15: Domů | E15: Formát\Zamknout list
E16: …zákaz editace buněk
E17: …povolení odemčených buněk
C19: Uzamčený list
C20: Odemčená buňka | E20: 123
C21: Domů\Formát\Uzamknout buňku
C22: Heslo zamknutí listu | E22: aaa
C23: Nejsou vidět vzorce | E23: =1+1 -> 2
C24: Formát buňky\Zámek\Skrýt vzorce
C25: Odemčená buňka | E25: 123
C26: TAB skáče mezi odemk. buňkami

Sheet Tip09
A1: ← | C1: Cyklické odkazy
G3: =I3+H6 -> 0
D5: =F6+G3+H6 -> 0
F6: 0 | H6: =J7+G9 -> 0
C9: Dostupné z…
C10: Karta | E10: Příkaz
C12: Vzorce | E12: Kontrola chyb\Cyklické odkazy
C13: Vzorce | E13: Předchůdci
E14: Následníci
E15: Odebrat šipky
E16: Vyhodnocení vzorce
C17: Soubor | E17: Možnosti\Vzorce\Povolit iterativní výpočet
C18: …přepočítá všechny buňky kromě cyklických
C19: …info ve StatusBar: "Přepočet"
C20: …info ve StatusBar

Sheet Tip10
A1: ← | C1: Small pleasures
B4: 1. | C4: Zadávání zvláštních znaků
C5: Hodnota (100) převedena na -100
D6: (100) | E6: -100
B8: 2. | C8: Číselný záznam ukončený % je převeden na procenta
D9: 0.65 | E9: formát buňky procenta
B11: 3. | C11: Použití lomítka (/) pro formát zlomek
D12: 3.75 | E12: zobrazí v řádku vzorců hodnotu 3,75
E13: formát buňky zlomky
B15: 4. | C15: Zadání zlomku, aby Excel nepřevedl na datum
D16: 2011-03-02 | E16: zadaná hodnota byla 2/3
D17: 0.6666666667 | E17: zadaná hodnota byla 0 2/3
B19: 5. | C19: Divné počty
E20: 2.38 | G20: zadáno 2,38
E21: 3.68 | G21: zadáno 3,68
D22: Suma | E22: =E20+E21 -> 6.06
D23: Pozor na rozdíl mezi zobrazovanými a zadanými hodnotami
B25: 6. | C25: Přesnosti zadání
E26: 0.123456789 | F26: zadáno bylo 0,1234567890123456789
E27: Hodnoty za 15. desetinným místem jsou ignorovány
E29: 1.23456789e+18 | F29: zadáno bylo 1234567890123456789
E30: Hodnoty za 15. číslicí jsou převedeny na nulu
B32: 7. | C32: Zadání textu
D33: 12345 | E33: Zadáno do buňky '12345
D34: ="12345" -> 12345 | E34: Zadáno do buňky ="12345"
D35: Excel 2003 | E35: Nástroje/Možnosti… Převod/Převod navigačních kláves
D36: Excel2007 | E36: Možnosti/Upřesnit … Kompatibilita s Lotus/Převod navigačních kláves
D37: ABC | E37: Zadáno do buňky ^ABC … zarovnáno na střed
D38: ABC | E38: Zadáno do buňky "ABC … zarovnáno vpravo
D39: ABC | E39: Zadáno do buňky \ABC … opakuje znaky v celé buňce
B41: 8. | C41: Zadání stejné hodnoty do oblasti
D42: 1. vybrat oblast
D43: 2. zadat hodnotu
D44: 3. stisknout CTRL+ENTER
D45: …hodnota se zadá do celé oblasti
B47: 9. | C47: Zadávání relativních a absolutních odkazů
D48: =$B6 | E48: Stiskem F4 se přepíná záznam odkazů
D49: B6 | E49: relativní odkaz
D50: B$6
D51: $B$6 | E51: absolutní odkaz
B53: 10. | C53: String Magic | E53: řetězení … nejen čísla jdou sčítat
D54: AB&CD=ABCD | E54: ="AB"&"CD" -> ABCD
C56: Malina | D56: Luboš | E56: =D56 &" " &C56 -> Luboš Malina
C57: Křesťan | D57: Robert | E57: =D57 &" " &C57 -> Robert Křesťan
C58: McCoy | D58: Charlie | E58: =D58 &" " &C58 -> Charlie McCoy

Sheet Tip11
A1: ← | C1: Empty values in charts
C3: Roky | D3: Výroba aut [tis.]
C4: 2013 | D4: 30
C5: 2014 | D5: 30
C6: 2015 | D6: 40
C7: 2016
C8: 2017 | D8: 40
C9: 2018 | D9: 50
C10: 2019
C11: 2020
C12: 2021 | D12: 40
C13: 2022 | D13: 30
C14: 2023 | D14: 30
C15: 2024
C16: 2025 | D16: 40
C17: 2026 | D17: 30
C18: 2027 | D18: 30

Sheet Tip12
A1: ← | C1: Text in the textbox
C3: Minimum | D3: =RAND() -> 0.1450905914
C4: Maximum | D4: =D3+RAND() -> 1.095071499
A6: ="Minimální hodnota " & D3 & " a maximální hodnota " & D4 -> Minimální hodnota 0,145090591403676 a maximální hodnota 1,09507149867821
A8: ="Minimální hodnota " & TEXT(D3,"0,000") & " a maximální hodnota " & TEXT(D4,"0,000") -> Minimální hodnota 0,145 a maximální hodnota 1,095

Sheet Tip13
A1: ← | C1: Variable source data for chart
O3: Počet hodnot
O4: 1
O5: 2
O6: 3
O7: 4
O8: 5
O9: 6
O10: 7
O11: 8
O12: 9
O13: 10
O14: 11
O15: 12
B21: Počet roků k zobrazení
C22: 8
B24: 2013 | C24: 2014 | D24: 2015 | E24: 2016 | F24: 2017 | G24: 2018 | H24: 2019 | I24: 2020 | J24: 2021 | K24: 2022 | L24: 2023 | M24: 2024
B25: 30 | C25: =B25-$B$25/$C$22 -> 26.25 | D25: 22.5 | E25: 18.75 | F25: 15 | G25: 11.25 | H25: 7.5 | I25: 3.75 | J25: 0 | K25: -3.75 | L25: -7.5 | M25: -11.25
B27: Definované názvy napojené, z kterých se vybírají data pro graf
B28: DataRoky | C28: =POSUN('Tip13'!$B$24;0;0;1;'Tip13'!$C$22)
B29: DataGraf | C29: =POSUN('Tip13'!$B$25;0;0;1;'Tip13'!$C$22)
B31: Funkce =POSUN(…;…;…;…;…) viz Help

Sheet Tip14
A1: ← | C1: Formula to text User function
C4: Rand 1 | D4: =RAND() -> 0.4614984838
C5: Rand 2 | D5: =RAND() -> 0.1505026975
C8: Formula | D8: =2*D4+D5/4 -> 0.9606226419
C11: To string | D11: =FormulaToString(D8) -> 
C14: User function: =FormulaToString(D8)
C16: User function zapsaná do modulu VBA

Sheet Tip15
A1: ← | C1: Add new sheet
C4: New name of the sheet: | D4: New1

Sheet Tip16
A1: ← | C1: Formula to text modif User function
C4: Rand 1 | D4: 45 | E4: m2
C5: Rand 2 | D5: 50 | E5: m2
C8: Formula | D8: =2*D4+D5/4+3*4*4+D4 -> 195.5 | E8: m2
C11: To string | D11: =FormulaToTextModif(D8) -> 
C14: User function: =FormulaToTextModif(D8)
C16: User function zapsaná do modulu VBA

Sheet Tip17
A1: ← | C1: Table function
C6: Použití funkce TABELOVAT(…)
D8: Výnos: | E8: 100000
D9: Znehodnocení: | E9: 0.01
D10: Limit: | E10: 3500
F11: Znehodnocení
E12: =E8*E9 -> 1000 | F12: 0 | G12: =F12+0.01 -> 0.01 | H12: 0.02 | I12: 0.03 | J12: 0.04 | K12: 0.05 | L12: 0.06
E13: 50000 | F13: 0 | G13: 500 | H13: 1000 | I13: 1500 | J13: 2000 | K13: 2500 | L13: 3000
E14: =E13+10000 -> 60000 | F14: 0 | G14: 600 | H14: 1200 | I14: 1800 | J14: 2400 | K14: 3000 | L14: 3600
E15: =E14+10000 -> 70000 | F15: 0 | G15: 700 | H15: 1400 | I15: 2100 | J15: 2800 | K15: 3500 | L15: 4200
E16: 80000 | F16: 0 | G16: 800 | H16: 1600 | I16: 2400 | J16: 3200 | K16: 4000 | L16: 4800
E17: 90000 | F17: 0 | G17: 900 | H17: 1800 | I17: 2700 | J17: 3600 | K17: 4500 | L17: 5400
E18: 100000 | F18: 0 | G18: 1000 | H18: 2000 | I18: 3000 | J18: 4000 | K18: 5000 | L18: 6000
E19: 110000 | F19: 0 | G19: 1100 | H19: 2200 | I19: 3300 | J19: 4400 | K19: 5500 | L19: 6600
E20: 120000 | F20: 0 | G20: 1200 | H20: 2400 | I20: 3600 | J20: 4800 | K20: 6000 | L20: 7200
E21: 130000 | F21: 0 | G21: 1300 | H21: 2600 | I21: 3900 | J21: 5200 | K21: 6500 | L21: 7800
E22: 140000 | F22: 0 | G22: 1400 | H22: 2800 | I22: 4200 | J22: 5600 | K22: 7000 | L22: 8400
E23: 150000 | F23: 0 | G23: 1500 | H23: 3000 | I23: 4500 | J23: 6000 | K23: 7500 | L23: 9000
E24: 160000 | F24: 0 | G24: 1600 | H24: 3200 | I24: 4800 | J24: 6400 | K24: 8000 | L24: 9600

Sheet Tip18
A1: ← | C1: Scrollbar control
C6: Přepočet propojené buňky
C8: Min. | D8: 0
C9: Max. | D9: 200
C11: Výsledek propojené buňky: | F11: 70
C12: Desetinné číslo: | F12: =F11/D9 -> 0.35
C13: Celé číslo: | F13: =F11 -> 70
C14: Záporné číslo: | F14: =-D9/2+F11 -> -30
C15: Záporné desetinné číslo: | F15: =-0.5+F11/D9 -> -0.15

Sheet Tip19
A1: ← | C1: Payment of loan
W2: Barevně označené varianty splátek/velikostí půjček jsou nedostupné
W3: Maximální splátka
E4: Č. splátky | F4: Jistina na zač. | G4: Úrok | H4: Splátka | I4: Úmor | J4: Jistina na kon. | M4: Splaceno | N4: Půjčka | W4: 10000 | X4: Velikosti půjček
A5: Půjčka | B5: 1000000 | C5: Kč | E5: 0 | F5: =B5 -> 1000000 | G5: 0 | H5: 0 | I5: 0 | J5: =F5 -> 1000000 | M5: =H5 -> 0 | N5: =$B$5 -> 1000000 | V5: =B10 -> 6263.747039 | W5: 3000000 | X5: =W5-200000 -> 2800000 | Y5: =X5-200000 -> 2600000 | Z5: 2400000 | AA5: 2200000 | AB5: 2000000 | AC5: 1800000 | AD5: 1600000 | AE5: 1400000 | AF5: 1200000 | AG5: 1000000 | AH5: 800000 | AI5: 600000 | AJ5: 400000 | AK5: 200000 | AL5: 0
A6: Počet splátek | B6: 204 | C6: - | E6: =E5+1 -> 1 | F6: =J5 -> 1000000 | G6: =F6*$B$8 -> 2500 | H6: =$B$10 -> 6263.747039 | I6: =H6-G6 -> 3763.747039 | J6: =F6-I6 -> 996236.253 | M6: =M5+H6 -> 6263.747039 | N6: =$B$5 -> 1000000 | U6: Doby splácení | V6: 240 | W6: 16637.92794 | X6: 15528.73274 | Y6: 14419.53754 | Z6: 13310.34235 | AA6: 12201.14715 | AB6: 11091.95196 | AC6: 9982.756761 | AD6: 8873.561566 | AE6: 7764.36637 | AF6: 6655.171174 | AG6: 5545.975979 | AH6: 4436.780783 | AI6: 3327.585587 | AJ6: 2218.390391 | AK6: 1109.195196 | AL6: 0
A7: Úrok za rok | B7: 0.03 | C7: p. a. | E7: =E6+1 -> 2 | F7: =J6 -> 996236.253 | G7: =F7*$B$8 -> 2490.590632 | H7: 6263.747039 | I7: =H7-G7 -> 3773.156406 | J7: =F7-I7 -> 992463.0966 | M7: 12527.49408 | N7: 1000000 | V7: =V6-12 -> 228 | W7: 17278.23352 | X7: 16126.35128 | Y7: 14974.46905 | Z7: 13822.58682 | AA7: 12670.70458 | AB7: 11518.82235 | AC7: 10366.94011 | AD7: 9215.057877 | AE7: 8063.175642 | AF7: 6911.293408 | AG7: 5759.411173 | AH7: 4607.528938 | AI7: 3455.646704 | AJ7: 2303.764469 | AK7: 1151.882235 | AL7: 0
A8: Úrok za měsíc | B8: =B7/12 -> 0.0025 | C8: p. m. | E8: 3 | F8: 992463.0966 | G8: 2481.157741 | H8: 6263.747039 | I8: 3782.589297 | J8: 988680.5073 | M8: 18791.24112 | N8: 1000000 | V8: =V7-12 -> 216 | W8: 17991.69872 | X8: 16792.25214 | Y8: 15592.80556 | Z8: 14393.35898 | AA8: 13193.9124 | AB8: 11994.46581 | AC8: 10795.01923 | AD8: 9595.572651 | AE8: 8396.12607 | AF8: 7196.679488 | AG8: 5997.232907 | AH8: 4797.786325 | AI8: 3598.339744 | AJ8: 2398.893163 | AK8: 1199.446581 | AL8: 0
E9: 4 | F9: 988680.5073 | G9: 2471.701268 | H9: 6263.747039 | I9: 3792.04577 | J9: 984888.4615 | M9: 25054.98815 | N9: 1000000 | V9: 204 | W9: 18791.24112 | X9: 17538.49171 | Y9: 16285.7423 | Z9: 15032.99289 | AA9: 13780.24349 | AB9: 12527.49408 | AC9: 11274.74467 | AD9: 10021.99526 | AE9: 8769.245854 | AF9: 7516.496446 | AG9: 6263.747039 | AH9: 5010.997631 | AI9: 3758.248223 | AJ9: 2505.498815 | AK9: 1252.749408 | AL9: 0
A10: Splátka | B10: =-PMT(B8,B6,B5) -> 6263.747039 | C10: Kč | E10: 5 | F10: 984888.4615 | G10: 2462.221154 | H10: 6263.747039 | I10: 3801.525885 | J10: 981086.9356 | M10: 31318.73519 | N10: 1000000 | V10: 192 | W10: 19693.0073 | X10: 18380.14014 | Y10: 17067.27299 | Z10: 15754.40584 | AA10: 14441.53869 | AB10: 13128.67153 | AC10: 11815.80438 | AD10: 10502.93723 | AE10: 9190.070072 | AF10: 7877.202919 | AG10: 6564.335766 | AH10: 5251.468613 | AI10: 3938.60146 | AJ10: 2625.734306 | AK10: 1312.867153 | AL10: 0
E11: 6 | F11: 981086.9356 | G11: 2452.717339 | H11: 6263.747039 | I11: 3811.0297 | J11: 977275.9059 | M11: 37582.48223 | N11: 1000000 | V11: 180 | W11: 20717.44921 | X11: 19336.28593 | Y11: 17955.12265 | Z11: 16573.95937 | AA11: 15192.79609 | AB11: 13811.63281 | AC11: 12430.46953 | AD11: 11049.30624 | AE11: 9668.142964 | AF11: 8286.979683 | AG11: 6905.816403 | AH11: 5524.653122 | AI11: 4143.489842 | AJ11: 2762.326561 | AK11: 1381.163281 | AL11: 0
E12: 7 | F12: 977275.9059 | G12: 2443.189765 | H12: 6263.747039 | I12: 3820.557274 | J12: 973455.3486 | M12: 43846.22927 | N12: 1000000 | V12: 168 | W12: 21890.86176 | X12: 20431.47098 | Y12: 18972.08019 | Z12: 17512.68941 | AA12: 16053.29862 | AB12: 14593.90784 | AC12: 13134.51706 | AD12: 11675.12627 | AE12: 10215.73549 | AF12: 8756.344704 | AG12: 7296.95392 | AH12: 5837.563136 | AI12: 4378.172352 | AJ12: 2918.781568 | AK12: 1459.390784 | AL12: 0
E13: 8 | F13: 973455.3486 | G13: 2433.638372 | H13: 6263.747039 | I13: 3830.108667 | J13: 969625.24 | M13: 50109.97631 | N13: 1000000 | V13: 156 | W13: 23247.63013 | X13: 21697.78812 | Y13: 20147.94611 | Z13: 18598.1041 | AA13: 17048.26209 | AB13: 15498.42009 | AC13: 13948.57808 | AD13: 12398.73607 | AE13: 10848.89406 | AF13: 9299.052051 | AG13: 7749.210043 | AH13: 6199.368034 | AI13: 4649.526026 | AJ13: 3099.684017 | AK13: 1549.842009 | AL13: 0
E14: 9 | F14: 969625.24 | G14: 2424.0631 | H14: 6263.747039 | I14: 3839.683939 | J14: 965785.556 | M14: 56373.72335 | N14: 1000000 | V14: 144 | W14: 24833.60068 | X14: 23178.0273 | Y14: 21522.45393 | Z14: 19866.88055 | AA14: 18211.30717 | AB14: 16555.73379 | AC14: 14900.16041 | AD14: 13244.58703 | AE14: 11589.01365 | AF14: 9933.440273 | AG14: 8277.866894 | AH14: 6622.293516 | AI14: 4966.720137 | AJ14: 3311.146758 | AK14: 1655.573379 | AL14: 0
E15: 10 | F15: 965785.556 | G15: 2414.46389 | H15: 6263.747039 | I15: 3849.283149 | J15: 961936.2729 | M15: 62637.47039 | N15: 1000000 | V15: 132 | W15: 26711.29063 | X15: 24930.53792 | Y15: 23149.78521 | Z15: 21369.0325 | AA15: 19588.2798 | AB15: 17807.52709 | AC15: 16026.77438 | AD15: 14246.02167 | AE15: 12465.26896 | AF15: 10684.51625 | AG15: 8903.763543 | AH15: 7123.010835 | AI15: 5342.258126 | AJ15: 3561.505417 | AK15: 1780.752709 | AL15: 0
E16: 11 | F16: 961936.2729 | G16: 2404.840682 | H16: 6263.747039 | I16: 3858.906356 | J16: 958077.3665 | M16: 68901.21743 | N16: 1000000 | V16: 120 | W16: 28968.22341 | X16: 27037.00852 | Y16: 25105.79362 | Z16: 23174.57873 | AA16: 21243.36383 | AB16: 19312.14894 | AC16: 17380.93405 | AD16: 15449.71915 | AE16: 13518.50426 | AF16: 11587.28936 | AG16: 9656.07447 | AH16: 7724.859576 | AI16: 5793.644682 | AJ16: 3862.429788 | AK16: 1931.214894 | AL16: 0
E17: 12 | F17: 958077.3665 | G17: 2395.193416 | H17: 6263.747039 | I17: 3868.553622 | J17: 954208.8129 | M17: 75164.96446 | N17: 1000000 | V17: 108 | W17: 31730.82105 | X17: 29615.43298 | Y17: 27500.04491 | Z17: 25384.65684 | AA17: 23269.26877 | AB17: 21153.8807 | AC17: 19038.49263 | AD17: 16923.10456 | AE17: 14807.71649 | AF17: 12692.32842 | AG17: 10576.94035 | AH17: 8461.552281 | AI17: 6346.16421 | AJ17: 4230.77614 | AK17: 2115.38807 | AL17: 0
E18: 13 | F18: 954208.8129 | G18: 2385.522032 | H18: 6263.747039 | I18: 3878.225006 | J18: 950330.5879 | M18: 81428.7115 | N18: 1000000 | V18: 96 | W18: 35188.71579 | X18: 32842.8014 | Y18: 30496.88702 | Z18: 28150.97263 | AA18: 25805.05825 | AB18: 23459.14386 | AC18: 21113.22947 | AD18: 18767.31509 | AE18: 16421.4007 | AF18: 14075.48632 | AG18: 11729.57193 | AH18: 9383.657544 | AI18: 7037.743158 | AJ18: 4691.828772 | AK18: 2345.914386 | AL18: 0
E19: 14 | F19: 950330.5879 | G19: 2375.82647 | H19: 6263.747039 | I19: 3887.920569 | J19: 946442.6673 | M19: 87692.45854 | N19: 1000000 | V19: 84 | W19: 39639.9002 | X19: 36997.24018 | Y19: 34354.58017 | Z19: 31711.92016 | AA19: 29069.26014 | AB19: 26426.60013 | AC19: 23783.94012 | AD19: 21141.2801 | AE19: 18498.62009 | AF19: 15855.96008 | AG19: 13213.30007 | AH19: 10570.64005 | AI19: 7927.980039 | AJ19: 5285.320026 | AK19: 2642.660013 | AL19: 0
E20: 15 | F20: 946442.6673 | G20: 2366.106668 | H20: 6263.747039 | I20: 3897.64037 | J20: 942545.027 | M20: 93956.20558 | N20: 1000000 | V20: 72 | W20: 45581.02746 | X20: 42542.29229 | Y20: 39503.55713 | Z20: 36464.82197 | AA20: 33426.0868 | AB20: 30387.35164 | AC20: 27348.61647 | AD20: 24309.88131 | AE20: 21271.14615 | AF20: 18232.41098 | AG20: 15193.67582 | AH20: 12154.94066 | AI20: 9116.205492 | AJ20: 6077.470328 | AK20: 3038.735164 | AL20: 0
E21: 16 | F21: 942545.027 | G21: 2356.362567 | H21: 6263.747039 | I21: 3907.384471 | J21: 938637.6425 | M21: 100219.9526 | N21: 1000000 | V21: 60 | W21: 53906.07199 | X21: 50312.33386 | Y21: 46718.59573 | Z21: 43124.85759 | AA21: 39531.11946 | AB21: 35937.38133 | AC21: 32343.6432 | AD21: 28749.90506 | AE21: 25156.16693 | AF21: 21562.4288 | AG21: 17968.69066 | AH21: 14374.95253 | AI21: 10781.2144 | AJ21: 7187.476266 | AK21: 3593.738133 | AL21: 0
E22: 17 | F22: 938637.6425 | G22: 2346.594106 | H22: 6263.747039 | I22: 3917.152932 | J22: 934720.4895 | M22: 106483.6997 | N22: 1000000 | V22: 48 | W22: 66402.98097 | X22: 61976.11557 | Y22: 57549.25017 | Z22: 53122.38477 | AA22: 48695.51938 | AB22: 44268.65398 | AC22: 39841.78858 | AD22: 35414.92318 | AE22: 30988.05779 | AF22: 26561.19239 | AG22: 22134.32699 | AH22: 17707.46159 | AI22: 13280.59619 | AJ22: 8853.730796 | AK22: 4426.865398 | AL22: 0
E23: 18 | F23: 934720.4895 | G23: 2336.801224 | H23: 6263.747039 | I23: 3926.945815 | J23: 930793.5437 | M23: 112747.4467 | N23: 1000000 | V23: 36 | W23: 87243.62889 | X23: 81427.38697 | Y23: 75611.14504 | Z23: 69794.90311 | AA23: 63978.66119 | AB23: 58162.41926 | AC23: 52346.17734 | AD23: 46529.93541 | AE23: 40713.69348 | AF23: 34897.45156 | AG23: 29081.20963 | AH23: 23264.9677 | AI23: 17448.72578 | AJ23: 11632.48385 | AK23: 5816.241926 | AL23: 0
E24: 19 | F24: 930793.5437 | G24: 2326.983859 | H24: 6263.747039 | I24: 3936.763179 | J24: 926856.7806 | M24: 119011.1937 | N24: 1000000 | V24: 24 | W24: 128943.6359 | X24: 120347.3935 | Y24: 111751.1511 | Z24: 103154.9088 | AA24: 94558.66636 | AB24: 85962.42396 | AC24: 77366.18156 | AD24: 68769.93917 | AE24: 60173.69677 | AF24: 51577.45438 | AG24: 42981.21198 | AH24: 34384.96958 | AI24: 25788.72719 | AJ24: 17192.48479 | AK24: 8596.242396 | AL24: 0
E25: 20 | F25: 926856.7806 | G25: 2317.141951 | H25: 6263.747039 | I25: 3946.605087 | J25: 922910.1755 | M25: 125274.9408 | N25: 1000000 | V25: 12 | W25: 254081.0963 | X25: 237142.3565 | Y25: 220203.6168 | Z25: 203264.877 | AA25: 186326.1373 | AB25: 169387.3975 | AC25: 152448.6578 | AD25: 135509.918 | AE25: 118571.1783 | AF25: 101632.4385 | AG25: 84693.69876 | AH25: 67754.95901 | AI25: 50816.21926 | AJ25: 33877.4795 | AK25: 16938.73975 | AL25: 0
E26: 21 | F26: =J25 -> 922910.1755 | G26: 2307.275439 | H26: 6263.747039 | I26: =H26-G26 -> 3956.4716 | J26: =F26-I26 -> 918953.7039 | M26: 131538.6878 | N26: 1000000
E27: =E26+1 -> 22 | F27: =J26 -> 918953.7039 | G27: 2297.38426 | H27: 6263.747039 | I27: =H27-G27 -> 3966.362779 | J27: =F27-I27 -> 914987.3411 | M27: 137802.4349 | N27: 1000000
E28: 23 | F28: 914987.3411 | G28: 2287.468353 | H28: 6263.747039 | I28: 3976.278686 | J28: 911011.0624 | M28: 144066.1819 | N28: 1000000
E29: 24 | F29: 911011.0624 | G29: 2277.527656 | H29: 6263.747039 | I29: 3986.219383 | J29: 907024.843 | M29: 150329.9289 | N29: 1000000
E30: 25 | F30: 907024.843 | G30: 2267.562108 | H30: 6263.747039 | I30: 3996.184931 | J30: 903028.6581 | M30: 156593.676 | N30: 1000000
E31: 26 | F31: 903028.6581 | G31: 2257.571645 | H31: 6263.747039 | I31: 4006.175393 | J31: 899022.4827 | M31: 162857.423 | N31: 1000000
E32: 27 | F32: 899022.4827 | G32: 2247.556207 | H32: 6263.747039 | I32: 4016.190832 | J32: 895006.2919 | M32: 169121.17 | N32: 1000000
E33: 28 | F33: 895006.2919 | G33: 2237.51573 | H33: 6263.747039 | I33: 4026.231309 | J33: 890980.0606 | M33: 175384.9171 | N33: 1000000
E34: 29 | F34: 890980.0606 | G34: 2227.450151 | H34: 6263.747039 | I34: 4036.296887 | J34: 886943.7637 | M34: 181648.6641 | N34: 1000000
E35: 30 | F35: 886943.7637 | G35: 2217.359409 | H35: 6263.747039 | I35: 4046.387629 | J35: 882897.376 | M35: 187912.4112 | N35: 1000000
E36: 31 | F36: 882897.376 | G36: 2207.24344 | H36: 6263.747039 | I36: 4056.503599 | J36: 878840.8724 | M36: 194176.1582 | N36: 1000000
E37: 32 | F37: 878840.8724 | G37: 2197.102181 | H37: 6263.747039 | I37: 4066.644858 | J37: 874774.2276 | M37: 200439.9052 | N37: 1000000
E38: 33 | F38: 874774.2276 | G38: 2186.935569 | H38: 6263.747039 | I38: 4076.81147 | J38: 870697.4161 | M38: =M37+H38 -> 206703.6523 | N38: 1000000
E39: 34 | F39: 870697.4161 | G39: 2176.74354 | H39: 6263.747039 | I39: 4087.003498 | J39: 866610.4126 | M39: 212967.3993 | N39: 1000000
E40: 35 | F40: 866610.4126 | G40: 2166.526032 | H40: 6263.747039 | I40: 4097.221007 | J40: 862513.1916 | M40: 219231.1464 | N40: 1000000
E41: 36 | F41: 862513.1916 | G41: 2156.282979 | H41: 6263.747039 | I41: 4107.46406 | J41: 858405.7275 | M41: 225494.8934 | N41: 1000000
E42: 37 | F42: 858405.7275 | G42: 2146.014319 | H42: 6263.747039 | I42: 4117.73272 | J42: 854287.9948 | M42: 231758.6404 | N42: 1000000
E43: 38 | F43: 854287.9948 | G43: 2135.719987 | H43: 6263.747039 | I43: 4128.027052 | J43: 850159.9678 | M43: 238022.3875 | N43: 1000000
E44: 39 | F44: 850159.9678 | G44: 2125.399919 | H44: 6263.747039 | I44: 4138.347119 | J44: 846021.6207 | M44: 244286.1345 | N44: 1000000
E45: 40 | F45: 846021.6207 | G45: 2115.054052 | H45: 6263.747039 | I45: 4148.692987 | J45: 841872.9277 | M45: 250549.8815 | N45: 1000000
E46: 41 | F46: 841872.9277 | G46: 2104.682319 | H46: 6263.747039 | I46: 4159.064719 | J46: 837713.8629 | M46: 256813.6286 | N46: 1000000
E47: 42 | F47: 837713.8629 | G47: 2094.284657 | H47: 6263.747039 | I47: 4169.462381 | J47: 833544.4006 | M47: 263077.3756 | N47: 1000000
E48: 43 | F48: 833544.4006 | G48: 2083.861001 | H48: 6263.747039 | I48: 4179.886037 | J48: 829364.5145 | M48: 269341.1227 | N48: 1000000
E49: 44 | F49: 829364.5145 | G49: 2073.411286 | H49: 6263.747039 | I49: 4190.335752 | J49: 825174.1788 | M49: 275604.8697 | N49: 1000000
E50: 45 | F50: 825174.1788 | G50: 2062.935447 | H50: 6263.747039 | I50: 4200.811592 | J50: 820973.3672 | M50: 281868.6167 | N50: 1000000
E51: 46 | F51: 820973.3672 | G51: 2052.433418 | H51: 6263.747039 | I51: 4211.313621 | J51: 816762.0536 | M51: 288132.3638 | N51: 1000000
E52: 47 | F52: 816762.0536 | G52: 2041.905134 | H52: 6263.747039 | I52: 4221.841905 | J52: 812540.2117 | M52: 294396.1108 | N52: 1000000
E53: 48 | F53: 812540.2117 | G53: 2031.350529 | H53: 6263.747039 | I53: 4232.396509 | J53: 808307.8152 | M53: 300659.8579 | N53: 1000000
E54: 49 | F54: 808307.8152 | G54: 2020.769538 | H54: 6263.747039 | I54: 4242.977501 | J54: 804064.8376 | M54: 306923.6049 | N54: 1000000
E55: 50 | F55: 804064.8376 | G55: 2010.162094 | H55: 6263.747039 | I55: 4253.584945 | J55: 799811.2527 | M55: 313187.3519 | N55: 1000000
E56: 51 | F56: 799811.2527 | G56: 1999.528132 | H56: 6263.747039 | I56: 4264.218907 | J56: 795547.0338 | M56: 319451.099 | N56: 1000000
E57: 52 | F57: 795547.0338 | G57: 1988.867584 | H57: 6263.747039 | I57: 4274.879454 | J57: 791272.1543 | M57: 325714.846 | N57: 1000000
E58: 53 | F58: 791272.1543 | G58: 1978.180386 | H58: 6263.747039 | I58: 4285.566653 | J58: 786986.5877 | M58: 331978.593 | N58: 1000000
E59: 54 | F59: 786986.5877 | G59: 1967.466469 | H59: 6263.747039 | I59: 4296.280569 | J59: 782690.3071 | M59: 338242.3401 | N59: 1000000
E60: 55 | F60: 782690.3071 | G60: 1956.725768 | H60: 6263.747039 | I60: 4307.021271 | J60: 778383.2859 | M60: 344506.0871 | N60: 1000000
E61: 56 | F61: 778383.2859 | G61: 1945.958215 | H61: 6263.747039 | I61: 4317.788824 | J61: 774065.497 | M61: 350769.8342 | N61: 1000000
E62: 57 | F62: 774065.497 | G62: 1935.163743 | H62: 6263.747039 | I62: 4328.583296 | J62: 769736.9137 | M62: 357033.5812 | N62: 1000000
E63: 58 | F63: 769736.9137 | G63: 1924.342284 | H63: 6263.747039 | I63: 4339.404754 | J63: 765397.509 | M63: 363297.3282 | N63: 1000000
E64: 59 | F64: 765397.509 | G64: 1913.493772 | H64: 6263.747039 | I64: 4350.253266 | J64: 761047.2557 | M64: 369561.0753 | N64: 1000000
E65: 60 | F65: 761047.2557 | G65: 1902.618139 | H65: 6263.747039 | I65: 4361.128899 | J65: 756686.1268 | M65: 375824.8223 | N65: 1000000
E66: 61 | F66: 756686.1268 | G66: 1891.715317 | H66: 6263.747039 | I66: 4372.031722 | J66: 752314.0951 | M66: 382088.5694 | N66: 1000000
E67: 62 | F67: 752314.0951 | G67: 1880.785238 | H67: 6263.747039 | I67: 4382.961801 | J67: 747931.1333 | M67: 388352.3164 | N67: 1000000
E68: 63 | F68: 747931.1333 | G68: 1869.827833 | H68: 6263.747039 | I68: 4393.919205 | J68: 743537.2141 | M68: 394616.0634 | N68: 1000000
E69: 64 | F69: 743537.2141 | G69: 1858.843035 | H69: 6263.747039 | I69: 4404.904003 | J69: 739132.3101 | M69: 400879.8105 | N69: 1000000
E70: 65 | F70: 739132.3101 | G70: 1847.830775 | H70: =$B$10 -> 6263.747039 | I70: 4415.916263 | J70: 734716.3938 | M70: =M69+H70 -> 407143.5575 | N70: =$B$5 -> 1000000
E71: 66 | F71: 734716.3938 | G71: =F71*$B$8 -> 1836.790985 | H71: 6263.747039 | I71: 4426.956054 | J71: 730289.4378 | M71: 413407.3046 | N71: 1000000
E72: 67 | F72: 730289.4378 | G72: 1825.723594 | H72: 6263.747039 | I72: 4438.023444 | J72: 725851.4143 | M72: 419671.0516 | N72: 1000000
E73: 68 | F73: 725851.4143 | G73: 1814.628536 | H73: 6263.747039 | I73: 4449.118503 | J73: 721402.2958 | M73: 425934.7986 | N73: 1000000
E74: 69 | F74: 721402.2958 | G74: 1803.50574 | H74: 6263.747039 | I74: 4460.241299 | J74: 716942.0545 | M74: 432198.5457 | N74: 1000000
E75: 70 | F75: 716942.0545 | G75: 1792.355136 | H75: 6263.747039 | I75: 4471.391902 | J75: 712470.6626 | M75: 438462.2927 | N75: 1000000
E76: 71 | F76: 712470.6626 | G76: 1781.176657 | H76: 6263.747039 | I76: 4482.570382 | J76: 707988.0922 | M76: 444726.0397 | N76: 1000000
E77: 72 | F77: 707988.0922 | G77: 1769.970231 | H77: 6263.747039 | I77: 4493.776808 | J77: 703494.3154 | M77: 450989.7868 | N77: 1000000
E78: 73 | F78: 703494.3154 | G78: 1758.735789 | H78: 6263.747039 | I78: 4505.01125 | J78: 698989.3042 | M78: 457253.5338 | N78: 1000000
E79: 74 | F79: 698989.3042 | G79: 1747.47326 | H79: 6263.747039 | I79: 4516.273778 | J79: 694473.0304 | M79: 463517.2809 | N79: 1000000
E80: 75 | F80: 694473.0304 | G80: 1736.182576 | H80: 6263.747039 | I80: 4527.564463 | J80: 689945.4659 | M80: 469781.0279 | N80: 1000000
E81: 76 | F81: 689945.4659 | G81: 1724.863665 | H81: 6263.747039 | I81: 4538.883374 | J81: 685406.5826 | M81: 476044.7749 | N81: 1000000
E82: 77 | F82: 685406.5826 | G82: 1713.516456 | H82: 6263.747039 | I82: 4550.230582 | J82: 680856.352 | M82: 482308.522 | N82: 1000000
E83: 78 | F83: 680856.352 | G83: 1702.14088 | H83: 6263.747039 | I83: 4561.606159 | J83: 676294.7458 | M83: 488572.269 | N83: 1000000
E84: 79 | F84: 676294.7458 | G84: 1690.736865 | H84: 6263.747039 | I84: 4573.010174 | J84: 671721.7356 | M84: 494836.0161 | N84: 1000000
E85: 80 | F85: 671721.7356 | G85: 1679.304339 | H85: 6263.747039 | I85: 4584.4427 | J85: 667137.2929 | M85: 501099.7631 | N85: 1000000
E86: 81 | F86: 667137.2929 | G86: 1667.843232 | H86: 6263.747039 | I86: 4595.903806 | J86: 662541.3891 | M86: 507363.5101 | N86: 1000000
E87: 82 | F87: 662541.3891 | G87: 1656.353473 | H87: 6263.747039 | I87: 4607.393566 | J87: 657933.9956 | M87: 513627.2572 | N87: 1000000
E88: 83 | F88: 657933.9956 | G88: 1644.834989 | H88: 6263.747039 | I88: 4618.91205 | J88: 653315.0835 | M88: 519891.0042 | N88: 1000000
E89: 84 | F89: 653315.0835 | G89: 1633.287709 | H89: 6263.747039 | I89: 4630.45933 | J89: 648684.6242 | M89: 526154.7512 | N89: 1000000
E90: 85 | F90: 648684.6242 | G90: 1621.71156 | H90: 6263.747039 | I90: 4642.035478 | J90: 644042.5887 | M90: 532418.4983 | N90: 1000000
E91: =E90+1 -> 86 | F91: =J90 -> 644042.5887 | G91: 1610.106472 | H91: 6263.747039 | I91: =H91-G91 -> 4653.640567 | J91: =F91-I91 -> 639388.9481 | M91: 538682.2453 | N91: 1000000
E92: 87 | F92: 639388.9481 | G92: 1598.47237 | H92: 6263.747039 | I92: 4665.274668 | J92: 634723.6735 | M92: 544945.9924 | N92: 1000000
E93: 88 | F93: 634723.6735 | G93: 1586.809184 | H93: 6263.747039 | I93: 4676.937855 | J93: 630046.7356 | M93: 551209.7394 | N93: 1000000
E94: 89 | F94: 630046.7356 | G94: 1575.116839 | H94: 6263.747039 | I94: 4688.6302 | J94: 625358.1054 | M94: 557473.4864 | N94: 1000000
E95: 90 | F95: 625358.1054 | G95: 1563.395264 | H95: 6263.747039 | I95: 4700.351775 | J95: 620657.7536 | M95: 563737.2335 | N95: 1000000
E96: 91 | F96: 620657.7536 | G96: 1551.644384 | H96: 6263.747039 | I96: 4712.102655 | J96: 615945.651 | M96: 570000.9805 | N96: 1000000
E97: 92 | F97: 615945.651 | G97: 1539.864127 | H97: 6263.747039 | I97: 4723.882911 | J97: 611221.7681 | M97: 576264.7276 | N97: 1000000
E98: 93 | F98: 611221.7681 | G98: 1528.05442 | H98: 6263.747039 | I98: 4735.692618 | J98: 606486.0755 | M98: 582528.4746 | N98: 1000000
E99: 94 | F99: 606486.0755 | G99: 1516.215189 | H99: 6263.747039 | I99: 4747.53185 | J99: 601738.5436 | M99: 588792.2216 | N99: 1000000
E100: 95 | F100: 601738.5436 | G100: 1504.346359 | H100: 6263.747039 | I100: 4759.40068 | J100: 596979.1429 | M100: 595055.9687 | N100: 1000000
E101: 96 | F101: 596979.1429 | G101: 1492.447857 | H101: 6263.747039 | I101: 4771.299181 | J101: 592207.8438 | M101: 601319.7157 | N101: 1000000
E102: 97 | F102: 592207.8438 | G102: 1480.519609 | H102: 6263.747039 | I102: 4783.227429 | J102: 587424.6163 | M102: =M101+H102 -> 607583.4627 | N102: 1000000
E103: 98 | F103: 587424.6163 | G103: 1468.561541 | H103: 6263.747039 | I103: 4795.185498 | J103: 582629.4308 | M103: 613847.2098 | N103: 1000000
E104: 99 | F104: 582629.4308 | G104: 1456.573577 | H104: 6263.747039 | I104: 4807.173462 | J104: 577822.2574 | M104: 620110.9568 | N104: 1000000
E105: 100 | F105: 577822.2574 | G105: 1444.555643 | H105: 6263.747039 | I105: 4819.191395 | J105: 573003.066 | M105: 626374.7039 | N105: 1000000
E106: 101 | F106: 573003.066 | G106: 1432.507665 | H106: 6263.747039 | I106: 4831.239374 | J106: 568171.8266 | M106: 632638.4509 | N106: 1000000
E107: 102 | F107: 568171.8266 | G107: 1420.429566 | H107: 6263.747039 | I107: 4843.317472 | J107: 563328.5091 | M107: 638902.1979 | N107: 1000000
E108: 103 | F108: 563328.5091 | G108: 1408.321273 | H108: 6263.747039 | I108: 4855.425766 | J108: 558473.0834 | M108: 645165.945 | N108: 1000000
E109: 104 | F109: 558473.0834 | G109: 1396.182708 | H109: 6263.747039 | I109: 4867.56433 | J109: 553605.519 | M109: 651429.692 | N109: 1000000
E110: 105 | F110: 553605.519 | G110: 1384.013798 | H110: 6263.747039 | I110: 4879.733241 | J110: 548725.7858 | M110: 657693.4391 | N110: 1000000
E111: 106 | F111: 548725.7858 | G111: 1371.814464 | H111: 6263.747039 | I111: 4891.932574 | J111: 543833.8532 | M111: 663957.1861 | N111: 1000000
E112: 107 | F112: 543833.8532 | G112: 1359.584633 | H112: 6263.747039 | I112: 4904.162406 | J112: 538929.6908 | M112: 670220.9331 | N112: 1000000
E113: 108 | F113: 538929.6908 | G113: 1347.324227 | H113: 6263.747039 | I113: 4916.422812 | J113: 534013.268 | M113: 676484.6802 | N113: 1000000
E114: 109 | F114: 534013.268 | G114: 1335.03317 | H114: 6263.747039 | I114: 4928.713869 | J114: 529084.5541 | M114: 682748.4272 | N114: 1000000
E115: 110 | F115: 529084.5541 | G115: 1322.711385 | H115: 6263.747039 | I115: 4941.035653 | J115: 524143.5185 | M115: 689012.1743 | N115: 1000000
E116: 111 | F116: 524143.5185 | G116: 1310.358796 | H116: 6263.747039 | I116: 4953.388242 | J116: 519190.1302 | M116: 695275.9213 | N116: 1000000
E117: 112 | F117: 519190.1302 | G117: 1297.975326 | H117: 6263.747039 | I117: 4965.771713 | J117: 514224.3585 | M117: 701539.6683 | N117: 1000000
E118: 113 | F118: 514224.3585 | G118: 1285.560896 | H118: 6263.747039 | I118: 4978.186142 | J118: 509246.1724 | M118: 707803.4154 | N118: 1000000
E119: 114 | F119: 509246.1724 | G119: 1273.115431 | H119: 6263.747039 | I119: 4990.631608 | J119: 504255.5408 | M119: 714067.1624 | N119: 1000000
E120: 115 | F120: 504255.5408 | G120: 1260.638852 | H120: 6263.747039 | I120: 5003.108187 | J120: 499252.4326 | M120: 720330.9094 | N120: 1000000
E121: 116 | F121: 499252.4326 | G121: 1248.131081 | H121: 6263.747039 | I121: 5015.615957 | J121: 494236.8166 | M121: 726594.6565 | N121: 1000000
E122: 117 | F122: 494236.8166 | G122: 1235.592042 | H122: 6263.747039 | I122: 5028.154997 | J122: 489208.6616 | M122: 732858.4035 | N122: 1000000
E123: 118 | F123: 489208.6616 | G123: 1223.021654 | H123: 6263.747039 | I123: 5040.725385 | J123: 484167.9362 | M123: 739122.1506 | N123: 1000000
E124: 119 | F124: 484167.9362 | G124: 1210.419841 | H124: 6263.747039 | I124: 5053.327198 | J124: 479114.609 | M124: 745385.8976 | N124: 1000000
E125: 120 | F125: 479114.609 | G125: 1197.786523 | H125: 6263.747039 | I125: 5065.960516 | J125: 474048.6485 | M125: 751649.6446 | N125: 1000000
E126: 121 | F126: 474048.6485 | G126: 1185.121621 | H126: 6263.747039 | I126: 5078.625417 | J126: 468970.0231 | M126: 757913.3917 | N126: 1000000
E127: 122 | F127: 468970.0231 | G127: 1172.425058 | H127: 6263.747039 | I127: 5091.321981 | J127: 463878.7011 | M127: 764177.1387 | N127: 1000000
E128: 123 | F128: 463878.7011 | G128: 1159.696753 | H128: 6263.747039 | I128: 5104.050286 | J128: 458774.6508 | M128: 770440.8858 | N128: 1000000
E129: 124 | F129: 458774.6508 | G129: 1146.936627 | H129: 6263.747039 | I129: 5116.810412 | J129: 453657.8404 | M129: 776704.6328 | N129: 1000000
E130: 125 | F130: 453657.8404 | G130: 1134.144601 | H130: 6263.747039 | I130: 5129.602438 | J130: 448528.238 | M130: 782968.3798 | N130: 1000000
E131: 126 | F131: 448528.238 | G131: 1121.320595 | H131: 6263.747039 | I131: 5142.426444 | J131: 443385.8116 | M131: 789232.1269 | N131: 1000000
E132: 127 | F132: 443385.8116 | G132: 1108.464529 | H132: 6263.747039 | I132: 5155.28251 | J132: 438230.529 | M132: 795495.8739 | N132: 1000000
E133: 128 | F133: 438230.529 | G133: 1095.576323 | H133: 6263.747039 | I133: 5168.170716 | J133: 433062.3583 | M133: 801759.6209 | N133: 1000000
E134: 129 | F134: 433062.3583 | G134: 1082.655896 | H134: =$B$10 -> 6263.747039 | I134: 5181.091143 | J134: 427881.2672 | M134: =M133+H134 -> 808023.368 | N134: =$B$5 -> 1000000
E135: 130 | F135: 427881.2672 | G135: =F135*$B$8 -> 1069.703168 | H135: 6263.747039 | I135: 5194.043871 | J135: 422687.2233 | M135: 814287.115 | N135: 1000000
E136: 131 | F136: 422687.2233 | G136: 1056.718058 | H136: 6263.747039 | I136: 5207.02898 | J136: 417480.1943 | M136: 820550.8621 | N136: 1000000
E137: 132 | F137: 417480.1943 | G137: 1043.700486 | H137: 6263.747039 | I137: 5220.046553 | J137: 412260.1478 | M137: 826814.6091 | N137: 1000000
E138: 133 | F138: 412260.1478 | G138: 1030.650369 | H138: 6263.747039 | I138: 5233.096669 | J138: 407027.0511 | M138: 833078.3561 | N138: 1000000
E139: 134 | F139: 407027.0511 | G139: 1017.567628 | H139: 6263.747039 | I139: 5246.179411 | J139: 401780.8717 | M139: 839342.1032 | N139: 1000000
E140: 135 | F140: 401780.8717 | G140: 1004.452179 | H140: 6263.747039 | I140: 5259.294859 | J140: 396521.5768 | M140: 845605.8502 | N140: 1000000
E141: 136 | F141: 396521.5768 | G141: 991.3039421 | H141: 6263.747039 | I141: 5272.443097 | J141: 391249.1337 | M141: 851869.5973 | N141: 1000000
E142: 137 | F142: 391249.1337 | G142: 978.1228344 | H142: 6263.747039 | I142: 5285.624204 | J142: 385963.5095 | M142: 858133.3443 | N142: 1000000
E143: 138 | F143: 385963.5095 | G143: 964.9087738 | H143: 6263.747039 | I143: 5298.838265 | J143: 380664.6713 | M143: 864397.0913 | N143: 1000000
E144: 139 | F144: 380664.6713 | G144: 951.6616782 | H144: 6263.747039 | I144: 5312.08536 | J144: 375352.5859 | M144: 870660.8384 | N144: 1000000
E145: =E144+1 -> 140 | F145: =J144 -> 375352.5859 | G145: 938.3814648 | H145: 6263.747039 | I145: =H145-G145 -> 5325.365574 | J145: =F145-I145 -> 370027.2203 | M145: 876924.5854 | N145: 1000000
E146: 141 | F146: 370027.2203 | G146: 925.0680509 | H146: 6263.747039 | I146: 5338.678988 | J146: 364688.5414 | M146: 883188.3324 | N146: 1000000
E147: 142 | F147: 364688.5414 | G147: 911.7213534 | H147: 6263.747039 | I147: 5352.025685 | J147: 359336.5157 | M147: 889452.0795 | N147: 1000000
E148: 143 | F148: 359336.5157 | G148: 898.3412892 | H148: 6263.747039 | I148: 5365.405749 | J148: 353971.1099 | M148: 895715.8265 | N148: 1000000
E149: 144 | F149: 353971.1099 | G149: 884.9277748 | H149: 6263.747039 | I149: 5378.819264 | J149: 348592.2907 | M149: 901979.5736 | N149: 1000000
E150: 145 | F150: 348592.2907 | G150: 871.4807266 | H150: 6263.747039 | I150: 5392.266312 | J150: 343200.0243 | M150: 908243.3206 | N150: 1000000
E151: 146 | F151: 343200.0243 | G151: 858.0000609 | H151: 6263.747039 | I151: 5405.746978 | J151: 337794.2774 | M151: 914507.0676 | N151: 1000000
E152: 147 | F152: 337794.2774 | G152: 844.4856934 | H152: 6263.747039 | I152: 5419.261345 | J152: 332375.016 | M152: 920770.8147 | N152: 1000000
E153: 148 | F153: 332375.016 | G153: 830.93754 | H153: 6263.747039 | I153: 5432.809499 | J153: 326942.2065 | M153: 927034.5617 | N153: 1000000
E154: 149 | F154: 326942.2065 | G154: 817.3555163 | H154: 6263.747039 | I154: 5446.391522 | J154: 321495.815 | M154: 933298.3088 | N154: 1000000
E155: 150 | F155: 321495.815 | G155: 803.7395375 | H155: 6263.747039 | I155: 5460.007501 | J155: 316035.8075 | M155: 939562.0558 | N155: 1000000
E156: 151 | F156: 316035.8075 | G156: 790.0895187 | H156: 6263.747039 | I156: 5473.65752 | J156: 310562.15 | M156: 945825.8028 | N156: 1000000
E157: 152 | F157: 310562.15 | G157: 776.4053749 | H157: 6263.747039 | I157: 5487.341664 | J157: 305074.8083 | M157: 952089.5499 | N157: 1000000
E158: 153 | F158: 305074.8083 | G158: 762.6870208 | H158: 6263.747039 | I158: 5501.060018 | J158: 299573.7483 | M158: 958353.2969 | N158: 1000000
E159: 154 | F159: 299573.7483 | G159: 748.9343707 | H159: 6263.747039 | I159: 5514.812668 | J159: 294058.9356 | M159: 964617.044 | N159: 1000000
E160: 155 | F160: 294058.9356 | G160: 735.1473391 | H160: 6263.747039 | I160: 5528.5997 | J160: 288530.3359 | M160: 970880.791 | N160: 1000000
E161: 156 | F161: 288530.3359 | G161: 721.3258398 | H161: 6263.747039 | I161: 5542.421199 | J161: 282987.9147 | M161: 977144.538 | N161: 1000000
E162: 157 | F162: 282987.9147 | G162: 707.4697868 | H162: 6263.747039 | I162: 5556.277252 | J162: 277431.6375 | M162: 983408.2851 | N162: 1000000
E163: 158 | F163: 277431.6375 | G163: 693.5790937 | H163: 6263.747039 | I163: 5570.167945 | J163: 271861.4695 | M163: 989672.0321 | N163: 1000000
E164: 159 | F164: 271861.4695 | G164: 679.6536738 | H164: 6263.747039 | I164: 5584.093365 | J164: 266277.3762 | M164: 995935.7791 | N164: 1000000
E165: 160 | F165: 266277.3762 | G165: 665.6934404 | H165: 6263.747039 | I165: 5598.053598 | J165: 260679.3226 | M165: 1002199.526 | N165: 1000000
E166: 161 | F166: 260679.3226 | G166: 651.6983064 | H166: 6263.747039 | I166: 5612.048732 | J166: 255067.2738 | M166: =M165+H166 -> 1008463.273 | N166: 1000000
E167: 162 | F167: 255067.2738 | G167: 637.6681846 | H167: 6263.747039 | I167: 5626.078854 | J167: 249441.195 | M167: 1014727.02 | N167: 1000000
E168: 163 | F168: 249441.195 | G168: 623.6029875 | H168: 6263.747039 | I168: 5640.144051 | J168: 243801.0509 | M168: 1020990.767 | N168: 1000000
E169: 164 | F169: 243801.0509 | G169: 609.5026273 | H169: 6263.747039 | I169: 5654.244411 | J169: 238146.8065 | M169: 1027254.514 | N169: 1000000
E170: 165 | F170: 238146.8065 | G170: 595.3670163 | H170: 6263.747039 | I170: 5668.380022 | J170: 232478.4265 | M170: 1033518.261 | N170: 1000000
E171: 166 | F171: 232478.4265 | G171: 581.1960662 | H171: 6263.747039 | I171: 5682.550972 | J171: 226795.8755 | M171: 1039782.008 | N171: 1000000
E172: 167 | F172: 226795.8755 | G172: 566.9896888 | H172: 6263.747039 | I172: 5696.75735 | J172: 221099.1182 | M172: 1046045.755 | N172: 1000000
E173: 168 | F173: 221099.1182 | G173: 552.7477954 | H173: 6263.747039 | I173: 5710.999243 | J173: 215388.1189 | M173: 1052309.502 | N173: 1000000
E174: 169 | F174: 215388.1189 | G174: 538.4702973 | H174: 6263.747039 | I174: 5725.276741 | J174: 209662.8422 | M174: 1058573.25 | N174: 1000000
E175: 170 | F175: 209662.8422 | G175: 524.1571055 | H175: 6263.747039 | I175: 5739.589933 | J175: 203923.2523 | M175: 1064836.997 | N175: 1000000
E176: 171 | F176: 203923.2523 | G176: 509.8081306 | H176: 6263.747039 | I176: 5753.938908 | J176: 198169.3134 | M176: 1071100.744 | N176: 1000000
E177: 172 | F177: 198169.3134 | G177: 495.4232834 | H177: 6263.747039 | I177: 5768.323755 | J177: 192400.9896 | M177: 1077364.491 | N177: 1000000
E178: 173 | F178: 192400.9896 | G178: 481.002474 | H178: 6263.747039 | I178: 5782.744565 | J178: 186618.245 | M178: 1083628.238 | N178: 1000000
E179: 174 | F179: 186618.245 | G179: 466.5456126 | H179: 6263.747039 | I179: 5797.201426 | J179: 180821.0436 | M179: 1089891.985 | N179: 1000000
E180: 175 | F180: 180821.0436 | G180: 452.052609 | H180: 6263.747039 | I180: 5811.69443 | J180: 175009.3492 | M180: 1096155.732 | N180: 1000000
E181: 176 | F181: 175009.3492 | G181: 437.5233729 | H181: 6263.747039 | I181: 5826.223666 | J181: 169183.1255 | M181: 1102419.479 | N181: 1000000
E182: 177 | F182: 169183.1255 | G182: 422.9578138 | H182: 6263.747039 | I182: 5840.789225 | J182: 163342.3363 | M182: 1108683.226 | N182: 1000000
E183: 178 | F183: 163342.3363 | G183: 408.3558407 | H183: 6263.747039 | I183: 5855.391198 | J183: 157486.9451 | M183: 1114946.973 | N183: 1000000
E184: 179 | F184: 157486.9451 | G184: 393.7173627 | H184: 6263.747039 | I184: 5870.029676 | J184: 151616.9154 | M184: 1121210.72 | N184: 1000000
E185: 180 | F185: 151616.9154 | G185: 379.0422885 | H185: 6263.747039 | I185: 5884.70475 | J185: 145732.2107 | M185: 1127474.467 | N185: 1000000
E186: 181 | F186: 145732.2107 | G186: 364.3305267 | H186: 6263.747039 | I186: 5899.416512 | J186: 139832.7941 | M186: 1133738.214 | N186: 1000000
E187: 182 | F187: 139832.7941 | G187: 349.5819854 | H187: 6263.747039 | I187: 5914.165053 | J187: 133918.6291 | M187: 1140001.961 | N187: 1000000
E188: 183 | F188: 133918.6291 | G188: 334.7965727 | H188: 6263.747039 | I188: 5928.950466 | J188: 127989.6786 | M188: 1146265.708 | N188: 1000000
E189: 184 | F189: 127989.6786 | G189: 319.9741966 | H189: 6263.747039 | I189: 5943.772842 | J189: 122045.9058 | M189: 1152529.455 | N189: 1000000
E190: 185 | F190: 122045.9058 | G190: 305.1147645 | H190: 6263.747039 | I190: 5958.632274 | J190: 116087.2735 | M190: 1158793.202 | N190: 1000000
E191: 186 | F191: 116087.2735 | G191: 290.2181838 | H191: 6263.747039 | I191: 5973.528855 | J191: 110113.7447 | M191: 1165056.949 | N191: 1000000
E192: 187 | F192: 110113.7447 | G192: 275.2843616 | H192: 6263.747039 | I192: 5988.462677 | J192: 104125.282 | M192: 1171320.696 | N192: 1000000
E193: 188 | F193: 104125.282 | G193: 260.313205 | H193: 6263.747039 | I193: 6003.433834 | J193: 98121.84815 | M193: 1177584.443 | N193: 1000000
E194: 189 | F194: 98121.84815 | G194: 245.3046204 | H194: 6263.747039 | I194: 6018.442418 | J194: 92103.40573 | M194: 1183848.19 | N194: 1000000
E195: 190 | F195: 92103.40573 | G195: 230.2585143 | H195: 6263.747039 | I195: 6033.488524 | J195: 86069.9172 | M195: 1190111.937 | N195: 1000000
E196: 191 | F196: 86069.9172 | G196: 215.174793 | H196: 6263.747039 | I196: 6048.572246 | J196: 80021.34496 | M196: 1196375.684 | N196: 1000000
E197: 192 | F197: 80021.34496 | G197: 200.0533624 | H197: 6263.747039 | I197: 6063.693676 | J197: 73957.65128 | M197: 1202639.431 | N197: 1000000
E198: 193 | F198: 73957.65128 | G198: 184.8941282 | H198: =$B$10 -> 6263.747039 | I198: 6078.85291 | J198: 67878.79837 | M198: =M197+H198 -> 1208903.178 | N198: =$B$5 -> 1000000
E199: 194 | F199: 67878.79837 | G199: =F199*$B$8 -> 169.6969959 | H199: 6263.747039 | I199: 6094.050043 | J199: 61784.74833 | M199: 1215166.925 | N199: 1000000
E200: 195 | F200: 61784.74833 | G200: 154.4618708 | H200: 6263.747039 | I200: 6109.285168 | J200: 55675.46316 | M200: 1221430.673 | N200: 1000000
... 5 more rows

Sheet Tip20
A1: ← | C1: Magic charts
G2: Perioda | H2: 0.8
G3: Min. | H3: -5
G4: Max. | H4: 5
H5: 5
B6: 1 | C6: Histogram hodnot s vyznačeným maximem | H6: 0 | I6: 10 | J6: 20 | K6: 30 | L6: 40 | M6: 50 | N6: 60 | O6: 70 | P6: 80 | Q6: 90 | R6: 100 | S6: 110 | T6: 120 | U6: 130 | V6: 140 | W6: 150 | X6: 160 | Y6: 170 | Z6: 180 | AA6: 190 | AB6: 200 | AC6: 210 | AD6: 220 | AE6: 230 | AF6: 240 | AG6: 250 | AH6: 260 | AI6: 270 | AJ6: 280 | AK6: 290 | AL6: 300 | AM6: 310 | AN6: 320 | AO6: 330 | AP6: 340 | AQ6: 350 | AR6: 360 | AS6: 370 | AT6: 380 | AU6: 390 | AV6: 400 | AW6: 410 | AX6: 420 | AY6: 430 | AZ6: 440 | BA6: 450 | BB6: 460 | BC6: 470 | BD6: 480 | BE6: 490 | BF6: 500 | BG6: 510 | BH6: 520 | BI6: 530 | BJ6: 540 | BK6: 550 | BL6: 560 | BM6: 570 | BN6: 580 | BO6: 590 | BP6: 600 | BQ6: 610 | BR6: 620 | BS6: 630 | BT6: 640 | BU6: 650 | BV6: 660 | BW6: 670 | BX6: 680 | BY6: 690 | BZ6: 700 | CA6: 710 | CB6: 720 | CC6: 730 | CD6: 740 | CE6: 750 | CF6: 760 | CG6: 770 | CH6: 780 | CI6: 790 | CJ6: 800 | CK6: 810 | CL6: 820 | CM6: 830 | CN6: 840 | CO6: 850 | CP6: 860 | CQ6: 870 | CR6: 880 | CS6: 890 | CT6: 900 | CU6: 910 | CV6: 920 | CW6: 930 | CX6: 940 | CY6: 950 | CZ6: 960 | DA6: 970 | DB6: 980 | DC6: 990
C7: Tvořeno jako kombinovaný graf. | G7: Standard 6 s riziky | H7: =(SIN(H6*$H$2*PI()/180)+RANDBETWEEN($H$3,$H$4)/$H$5+2) -> 1 | I7: =(SIN(I6*$H$2*PI()/180)+RANDBETWEEN($H$3,$H$4)/$H$5+2) -> 2.139173101 | J7: 2.475637356 | K7: 2.806736643 | L7: 1.929919264 | M7: 1.84278761 | N7: 3.543144825 | O7: 3.429037573 | P7: 2.298794046 | Q7: 2.751056516 | R7: 2.784807753 | S7: 2.799390827 | T7: 3.794521895 | U7: 2.170295726 | V7: 3.327183855 | W7: 3.066025404 | X7: 3.788010754 | Y7: 2.29465837 | Z7: 1.987785252 | AA7: 2.269471563 | AB7: 1.942020143 | AC7: 1.207911691 | AD7: 2.869756474 | AE7: 2.130243526 | AF7: 1.792088309 | AG7: 2.057979857 | AH7: 1.930528437 | AI7: 1.212214748 | AJ7: 1.30534163 | AK7: 0.6119892464 | AL7: 0.5339745962 | AM7: 0.4728161454 | AN7: 1.029704274 | AO7: 2.005478105 | AP7: 0.400609173 | AQ7: 1.415192247 | AR7: 1.848943484 | AS7: 1.701205954 | AT7: 0.7709624274 | AU7: 1.656855175 | AV7: 1.75721239 | AW7: 0.8700807358 | AX7: 2.593263357 | AY7: 0.9243626442 | AZ7: 1.460826899 | BA7: 1.6 | BB7: 1.939173101 | BC7: 2.675637356 | BD7: 2.406736643 | BE7: 2.929919264 | BF7: 3.44278761 | BG7: 3.143144825 | BH7: 1.829037573 | BI7: 2.298794046 | BJ7: 3.151056516 | BK7: 3.584807753 | BL7: 2.199390827 | BM7: 3.194521895 | BN7: 2.770295726 | BO7: 2.327183855 | BP7: 2.266025404 | BQ7: 3.588010754 | BR7: 1.89465837 | BS7: 1.787785252 | BT7: 2.869471563 | BU7: =(SIN(BU6*$H$2*PI()/180)+RANDBETWEEN($H$3,$H$4)/$H$5+2) -> 1.942020143 | BV7: 1.607911691 | BW7: 2.869756474 | BX7: 1.930243526 | BY7: 0.7920883092 | BZ7: 1.857979857 | CA7: 2.330528437 | CB7: 0.4122147477 | CC7: 1.90534163 | CD7: 1.011989246 | CE7: 0.5339745962 | CF7: 1.272816145 | CG7: 2.029704274 | CH7: 1.005478105 | CI7: 1.800609173 | CJ7: 1.415192247 | CK7: 0.6489434837 | CL7: 1.701205954 | CM7: 1.770962427 | CN7: 0.6568551745 | CO7: 0.3572123903 | CP7: 1.070080736 | CQ7: 2.193263357 | CR7: 0.7243626442 | CS7: 2.060826899 | CT7: 1.6 | CU7: 1.139173101 | CV7: 3.275637356 | CW7: 1.806736643 | CX7: 3.529919264 | CY7: 1.84278761 | CZ7: 2.943144825 | DA7: 2.629037573 | DB7: 3.698794046 | DC7: 2.351056516
C8: V grafu jsou dvě řady překryté přes sebe.
C9: Součtová čára na vedlejší ose. | G9: Min. rizik. | H9: =MIN(H7:DC7) -> 0.3572123903
C10: Max. hodnota dohledaná jako: | G10: Max. rizik. | H10: =MAX(H7:DC7) -> 3.794521895
C11: =SVYHLEDAT(J22;J13:K21;2;NEPRAVDA) | G11: Počet tříd | H11: =ROUNDUP(2.5*100^0.25,0) -> 8
G12: Krok | H12: =(H10-H9)/H11 -> 0.4296636881 | I12: Souč. čára | J12: Četnosti | K12: Intervaly | L12: Pomocná data
G13: 1 | H13: =H9 -> 0.3572123903 | I13: =FREQUENCY($H$7:$DC$7,H13) -> 1 | J13: =I13 -> 1 | K13: =H13 -> 0.3572123903 | L13: =IF(J13<>$J$22,J13,0) -> 1 | M13: =IF(J13=$J$22,J13,0) -> 0
G14: =G13+1 -> 2 | H14: =H13+$H$12 -> 0.7868760784 | I14: =FREQUENCY($H$7:$DC$7,H14) -> 11 | J14: =I14-I13 -> 10 | K14: =H14 -> 0.7868760784 | L14: =IF(J14<>$J$22,J14,0) -> 10 | M14: =IF(J14=$J$22,J14,0) -> 0
G15: =G14+1 -> 3 | H15: =H14+$H$12 -> 1.216539767 | I15: 22 | J15: =I15-I14 -> 11 | K15: 1.216539767 | L15: 11 | M15: 0
G16: 4 | H16: 1.646203455 | I16: 30 | J16: 8 | K16: 1.646203455 | L16: 8 | M16: 0
G17: 5 | H17: 2.075867143 | I17: 57 | J17: 27 | K17: 2.075867143 | L17: 0 | M17: 27
G18: 6 | H18: 2.505530831 | I18: 72 | J18: 15 | K18: 2.505530831 | L18: 15 | M18: 0
G19: 7 | H19: 2.935194519 | I19: 84 | J19: 12 | K19: 2.935194519 | L19: 12 | M19: 0
G20: 8 | H20: 3.364858207 | I20: 91 | J20: 7 | K20: 3.364858207 | L20: 7 | M20: 0
G21: 9 | H21: 3.794521895 | I21: 100 | J21: 9 | K21: 3.794521895 | L21: 9 | M21: 0
I22: Max | J22: =MAX(J13:J21) -> 27
I23: Nejčastější hodnota | J23: =VLOOKUP(J22,J13:K21,2,FALSE) -> 2.075867143
B25: 2 | C25: Graf s vyznačenými přesahy přes maximum
C26: Maximum | D26: 2.5 | H26: =IF($E$32,IF(H7>$D$26,$D$26,H7),0) -> 1 | I26: =IF($E$32,IF(I7>$D$26,$D$26,I7),0) -> 2.139173101 | J26: 2.475637356 | K26: 2.5 | L26: 1.929919264 | M26: 1.84278761 | N26: 2.5 | O26: 2.5 | P26: 2.298794046 | Q26: 2.5 | R26: 2.5 | S26: 2.5 | T26: 2.5 | U26: 2.170295726 | V26: 2.5 | W26: 2.5 | X26: 2.5 | Y26: 2.29465837 | Z26: 1.987785252 | AA26: 2.269471563 | AB26: 1.942020143 | AC26: 1.207911691 | AD26: 2.5 | AE26: 2.130243526 | AF26: 1.792088309 | AG26: 2.057979857 | AH26: 1.930528437 | AI26: 1.212214748 | AJ26: 1.30534163 | AK26: 0.6119892464 | AL26: 0.5339745962 | AM26: 0.4728161454 | AN26: 1.029704274 | AO26: 2.005478105 | AP26: 0.400609173 | AQ26: 1.415192247 | AR26: 1.848943484 | AS26: 1.701205954 | AT26: 0.7709624274 | AU26: 1.656855175 | AV26: 1.75721239 | AW26: 0.8700807358 | AX26: 2.5 | AY26: 0.9243626442 | AZ26: 1.460826899 | BA26: 1.6 | BB26: 1.939173101 | BC26: 2.5 | BD26: 2.406736643 | BE26: 2.5 | BF26: 2.5 | BG26: 2.5 | BH26: 1.829037573 | BI26: 2.298794046 | BJ26: 2.5 | BK26: 2.5 | BL26: 2.199390827 | BM26: 2.5 | BN26: 2.5 | BO26: 2.327183855 | BP26: 2.266025404 | BQ26: 2.5 | BR26: 1.89465837 | BS26: 1.787785252 | BT26: 2.5 | BU26: =IF($E$32,IF(BU7>$D$26,$D$26,BU7),0) -> 1.942020143 | BV26: 1.607911691 | BW26: 2.5 | BX26: 1.930243526 | BY26: 0.7920883092 | BZ26: 1.857979857 | CA26: 2.330528437 | CB26: 0.4122147477 | CC26: 1.90534163 | CD26: 1.011989246 | CE26: 0.5339745962 | CF26: 1.272816145 | CG26: 2.029704274 | CH26: 1.005478105 | CI26: 1.800609173 | CJ26: 1.415192247 | CK26: 0.6489434837 | CL26: 1.701205954 | CM26: 1.770962427 | CN26: 0.6568551745 | CO26: 0.3572123903 | CP26: 1.070080736 | CQ26: 2.193263357 | CR26: 0.7243626442 | CS26: 2.060826899 | CT26: 1.6 | CU26: 1.139173101 | CV26: 2.5 | CW26: 1.806736643 | CX26: 2.5 | CY26: 1.84278761 | CZ26: 2.5 | DA26: 2.5 | DB26: 2.5 | DC26: 2.351056516
C27: Tvořeno jako kombinovaný graf. | H27: =IF($E$33,IF(H7>$D$26,H7-D26,0),0) -> 0 | I27: =IF($E$33,IF(I7>$D$26,I7-E26,0),0) -> 0 | J27: 0 | K27: 0 | L27: 0 | M27: 0 | N27: 0 | O27: 0 | P27: 0 | Q27: 0 | R27: 0 | S27: 0 | T27: 0 | U27: 0 | V27: 0 | W27: 0 | X27: 0 | Y27: 0 | Z27: 0 | AA27: 0 | AB27: 0 | AC27: 0 | AD27: 0 | AE27: 0 | AF27: 0 | AG27: 0 | AH27: 0 | AI27: 0 | AJ27: 0 | AK27: 0 | AL27: 0 | AM27: 0 | AN27: 0 | AO27: 0 | AP27: 0 | AQ27: 0 | AR27: 0 | AS27: 0 | AT27: 0 | AU27: 0 | AV27: 0 | AW27: 0 | AX27: 0 | AY27: 0 | AZ27: 0 | BA27: 0 | BB27: 0 | BC27: 0 | BD27: 0 | BE27: 0 | BF27: 0 | BG27: 0 | BH27: 0 | BI27: 0 | BJ27: 0 | BK27: 0 | BL27: 0 | BM27: 0 | BN27: 0 | BO27: 0 | BP27: 0 | BQ27: 0 | BR27: 0 | BS27: 0 | BT27: 0 | BU27: =IF($E$33,IF(BU7>$D$26,BU7-BQ26,0),0) -> 0 | BV27: 0 | BW27: 0 | BX27: 0 | BY27: 0 | BZ27: 0 | CA27: 0 | CB27: 0 | CC27: 0 | CD27: 0 | CE27: 0 | CF27: 0 | CG27: 0 | CH27: 0 | CI27: 0 | CJ27: 0 | CK27: 0 | CL27: 0 | CM27: 0 | CN27: 0 | CO27: 0 | CP27: 0 | CQ27: 0 | CR27: 0 | CS27: 0 | CT27: 0 | CU27: 0 | CV27: 0 | CW27: 0 | CX27: 0 | CY27: 0 | CZ27: 0 | DA27: 0 | DB27: 0 | DC27: 0
C28: V grafu jsou dvě řady jako skládané. | H28: =$D$26 -> 2.5 | I28: =$D$26 -> 2.5 | J28: 2.5 | K28: 2.5 | L28: 2.5 | M28: 2.5 | N28: 2.5 | O28: 2.5 | P28: 2.5 | Q28: 2.5 | R28: 2.5 | S28: 2.5 | T28: 2.5 | U28: 2.5 | V28: 2.5 | W28: 2.5 | X28: 2.5 | Y28: 2.5 | Z28: 2.5 | AA28: 2.5 | AB28: 2.5 | AC28: 2.5 | AD28: 2.5 | AE28: 2.5 | AF28: 2.5 | AG28: 2.5 | AH28: 2.5 | AI28: 2.5 | AJ28: 2.5 | AK28: 2.5 | AL28: 2.5 | AM28: 2.5 | AN28: 2.5 | AO28: 2.5 | AP28: 2.5 | AQ28: 2.5 | AR28: 2.5 | AS28: 2.5 | AT28: 2.5 | AU28: 2.5 | AV28: 2.5 | AW28: 2.5 | AX28: 2.5 | AY28: 2.5 | AZ28: 2.5 | BA28: 2.5 | BB28: 2.5 | BC28: 2.5 | BD28: 2.5 | BE28: 2.5 | BF28: 2.5 | BG28: 2.5 | BH28: 2.5 | BI28: 2.5 | BJ28: 2.5 | BK28: 2.5 | BL28: 2.5 | BM28: 2.5 | BN28: 2.5 | BO28: 2.5 | BP28: 2.5 | BQ28: 2.5 | BR28: 2.5 | BS28: 2.5 | BT28: 2.5 | BU28: =$D$26 -> 2.5 | BV28: 2.5 | BW28: 2.5 | BX28: 2.5 | BY28: 2.5 | BZ28: 2.5 | CA28: 2.5 | CB28: 2.5 | CC28: 2.5 | CD28: 2.5 | CE28: 2.5 | CF28: 2.5 | CG28: 2.5 | CH28: 2.5 | CI28: 2.5 | CJ28: 2.5 | CK28: 2.5 | CL28: 2.5 | CM28: 2.5 | CN28: 2.5 | CO28: 2.5 | CP28: 2.5 | CQ28: 2.5 | CR28: 2.5 | CS28: 2.5 | CT28: 2.5 | CU28: 2.5 | CV28: 2.5 | CW28: 2.5 | CX28: 2.5 | CY28: 2.5 | CZ28: 2.5 | DA28: 2.5 | DB28: 2.5 | DC28: 2.5
C29: První řada je do maximální hodnoty.
C30: Druhá řada je přidaná nad maximum.
C31: Třetí řada je maximum jako spojnice.
E32: TRUE
E33: FALSE
B42: 3 | C42: Histogram pomocí nástroje Analýza dat
C43: V menu Soubor/Možnosti/Doplňky zavést Analýza dat
L45: 0.0054781 | M45: Četnost
L46: 0.6641202872 | M46: 6
L47: 1.042376238 | M47: 9
L48: 1.54578189 | M48: 17
L49: 1.997565534 | M49: 15
L50: 2.487764129 | M50: 16
L51: 3.033036769 | M51: 15
L52: 3.499357528 | M52: 13
C53: Zvolit na kartě Data/Analýza dat/Histogram | L53: 3.994521895 | M53: 8
L54: Další | M54: 0
B62: 4 | C62: Kaskádový (Waterfall) graf
C63: Zobrazuje počáteční a koncovou hodnotu. | I63: Období | J63: Produkce | L63: Poč./Kon. | M63: Pomocná | N63: Růst | O63: Pokles
C64: Zobrazuje přírůstky po obdobích. | I64: 2016 | J64: 100 | K64: =J64 -> 100 | L64: =J64 -> 100
C65: Kladné a záporné přírůstky jsou odlišeny barvou. | I65: =I64+1 -> 2017 | J65: 160 | K65: =J65-J64 -> 60 | M65: =MIN(SUM(K$64:K64),SUM(K$64:K65)) -> 100 | N65: =MAX(K65,0) -> 60 | O65: =-MIN(K65,0) -> 0
I66: =I65+1 -> 2018 | J66: 140 | K66: =J66-J65 -> -20 | M66: =MIN(SUM(K$64:K65),SUM(K$64:K66)) -> 140 | N66: =MAX(K66,0) -> 0 | O66: =-MIN(K66,0) -> 20
I67: 2019 | J67: 120 | K67: -20 | M67: =MIN(SUM(K$64:K66),SUM(K$64:K67)) -> 120 | N67: 0 | O67: 20
I68: 2020 | J68: 150 | K68: 30 | M68: =MIN(SUM(K$64:K67),SUM(K$64:K68)) -> 120 | N68: 30 | O68: 0
I69: 2021 | J69: 160 | K69: 10 | M69: =MIN(SUM(K$64:K68),SUM(K$64:K69)) -> 150 | N69: 10 | O69: 0
I70: 2022 | J70: 140 | K70: -20 | M70: =MIN(SUM(K$64:K69),SUM(K$64:K70)) -> 140 | N70: 0 | O70: 20
I71: 2023 | J71: 150 | K71: 10 | M71: =MIN(SUM(K$64:K70),SUM(K$64:K71)) -> 140 | N71: 10 | O71: 0
I72: 2024 | J72: 170 | L72: =J72 -> 170 | N72: 0 | O72: 0
K73: =K64 -> 100
K74: =J65-J64 -> 60
K75: =J66-J65 -> -20
K76: -20
K77: 30
K78: 10
K79: -20
K80: 10
C81: Upravená zdroj: | D81: http://office.lasakovi.com/excel/grafy/typy-seznam-grafu-excel/#16 | K81: 20

Sheet Tip21
A1: ← | C1: Custom format cells
C5: Kusy | E5: 10 | F5: 0" Ks"
C6: Kusy | E6: 10 | F6: 0" ks" | BZ6: 700 | CA6: 710 | CB6: 720 | CC6: 730 | CD6: 740 | CE6: 750 | CF6: 760 | CG6: 770 | CH6: 780 | CI6: 790 | CJ6: 800 | CK6: 810 | CL6: 820 | CM6: 830 | CN6: 840 | CO6: 850 | CP6: 860 | CQ6: 870 | CR6: 880 | CS6: 890 | CT6: 900 | CU6: 910 | CV6: 920 | CW6: 930 | CX6: 940 | CY6: 950 | CZ6: 960 | DA6: 970 | DB6: 980 | DC6: 990
C7: Bezrozměrná | E7: 10 | F7: 0" [-]" | BZ7: =(SIN(BZ6*$H$2*PI()/180)+RANDBETWEEN($H$3,$H$4)/$H$5+2) -> 
C8: Doplnění znaků | E8: 10 | F8: "XX "0"0,--"*X
C9: Podmínka "0,0000" | E9: 0.2 | F9: [<1]0,0000" W";[<1000]0,000" W";0,00" A"
C10: Náhrada čísel za slova | E10: 0 | F10: "kladné";"záporné";"bez trendu"
C11: Trendy | E11: 0 | F11: "rostoucí";"klesající"
C14: Zdroje:
C15: http://wall.cz/excel-navod/vlastni-format-bunek
C16: https://support.office.com/cs-cz/article/Vytvo%C5%99en%C3%AD-nebo-odstran%C4%9Bn%C3%AD-vlastn%C3%ADho-form%C3%A1tu-%C4%8D%C3%ADsla-78f2a361-936b-4c03-8772-09fab54be7f4#bm1
C17: http://www.votruba.in/tab/format.pdf
C18: http://www.excel-easy.com/examples/custom-number-format.html
C19: http://www.exceltactics.com/definitive-guide-custom-number-formats-excel/
BZ26: =IF(BZ7>$D$26,$D$26,BZ7) -> 
BZ27: =IF(BZ7>$D$26,BZ7-BV26,0) -> 
BZ28: =$D$26 -> 0 | CA28: 0 | CB28: 0 | CC28: 0 | CD28: 0 | CE28: 0 | CF28: 0 | CG28: 0 | CH28: 0 | CI28: 0 | CJ28: 0 | CK28: 0 | CL28: 0 | CM28: 0 | CN28: 0 | CO28: 0 | CP28: 0 | CQ28: 0 | CR28: 0 | CS28: 0 | CT28: 0 | CU28: 0 | CV28: 0 | CW28: 0 | CX28: 0 | CY28: 0 | CZ28: 0 | DA28: 0 | DB28: 0 | DC28: 0

Sheet Tip22
A1: ← | C1: COUNTIF formula modif User function
C4: Jak zjistit kolikrát je levý sloupec hodnot větší než pravý?
C5: Použití vlastní funkce =PocetVetsich(…)
D6: 5 | E6: 1 | BZ6: 700 | CA6: 710 | CB6: 720 | CC6: 730 | CD6: 740 | CE6: 750 | CF6: 760 | CG6: 770 | CH6: 780 | CI6: 790 | CJ6: 800 | CK6: 810 | CL6: 820 | CM6: 830 | CN6: 840 | CO6: 850 | CP6: 860 | CQ6: 870 | CR6: 880 | CS6: 890 | CT6: 900 | CU6: 910 | CV6: 920 | CW6: 930 | CX6: 940 | CY6: 950 | CZ6: 960 | DA6: 970 | DB6: 980 | DC6: 990
D7: 4 | E7: 2 | BZ7: =(SIN(BZ6*$H$2*PI()/180)+RANDBETWEEN($H$3,$H$4)/$H$5+2) -> 
D8: 10 | E8: 9
D9: 1 | E9: 2
D10: 8 | E10: 4
D11: 5 | E11: 9
D12: 3 | E12: 7
C14: Syntaxe
C15: =PocetVetsich(D6:D12;E6:E12)
C16: Výsledek: | D16: =PocetVetsich(D6:D12,E6:E12) -> 
BZ26: =IF(BZ7>$D$26,$D$26,BZ7) -> 
BZ27: =IF(BZ7>$D$26,BZ7-BV26,0) -> 
BZ28: =$D$26 -> 0 | CA28: 0 | CB28: 0 | CC28: 0 | CD28: 0 | CE28: 0 | CF28: 0 | CG28: 0 | CH28: 0 | CI28: 0 | CJ28: 0 | CK28: 0 | CL28: 0 | CM28: 0 | CN28: 0 | CO28: 0 | CP28: 0 | CQ28: 0 | CR28: 0 | CS28: 0 | CT28: 0 | CU28: 0 | CV28: 0 | CW28: 0 | CX28: 0 | CY28: 0 | CZ28: 0 | DA28: 0 | DB28: 0 | DC28: 0

Sheet Tip23
A1: ← | C1: Scenario Manager
C4: Jak porovnat výsledné hodnoty pro různé vstupy?
C5: Správce scénářů umožňuje porovnávat scénáře vstupů.
C6: Funkce dostupná z karty Data/Citlivostní analýza
C8: Výroba : | E8: 100 | F8: t | BZ8: 700 | CA8: 710 | CB8: 720 | CC8: 730 | CD8: 740 | CE8: 750 | CF8: 760 | CG8: 770 | CH8: 780 | CI8: 790 | CJ8: 800 | CK8: 810 | CL8: 820 | CM8: 830 | CN8: 840 | CO8: 850 | CP8: 860 | CQ8: 870 | CR8: 880 | CS8: 890 | CT8: 900 | CU8: 910 | CV8: 920 | CW8: 930 | CX8: 940 | CY8: 950 | CZ8: 960 | DA8: 970 | DB8: 980 | DC8: 990
C9: Prodej : | E9: 100 | F9: t | BZ9: =(SIN(BZ8*$H$2*PI()/180)+RANDBETWEEN($H$3,$H$4)/$H$7+2) -> 
C10: Počet zaměstanců : | E10: 50
C11: Jednotková cena : | E11: 5000 | F11: Kč/t
C13: Celková cena výroby : | E13: =E8*E11 -> 500000 | F13: Kč/měsíc
C14: Efektivita na 1 zaměstnance : | E14: =E13/E10 -> 10000 | F14: Kč/měsíc
C27: Zpráva s porovnáním vstupních a výstupních hodnot:
BZ28: =IF(BZ9>#REF!,#REF!,BZ9) ->  | CA28: =IF(CA9>#REF!,#REF!,CA9) ->  | CB28: =IF(CB9>#REF!,#REF!,CB9) ->  | CC28: =IF(CC9>#REF!,#REF!,CC9) ->  | CD28: =IF(CD9>#REF!,#REF!,CD9) ->  | CE28: =IF(CE9>#REF!,#REF!,CE9) ->  | CF28: =IF(CF9>#REF!,#REF!,CF9) ->  | CG28: =IF(CG9>#REF!,#REF!,CG9) ->  | CH28: =IF(CH9>#REF!,#REF!,CH9) ->  | CI28: =IF(CI9>#REF!,#REF!,CI9) ->  | CJ28: =IF(CJ9>#REF!,#REF!,CJ9) ->  | CK28: =IF(CK9>#REF!,#REF!,CK9) ->  | CL28: =IF(CL9>#REF!,#REF!,CL9) ->  | CM28: =IF(CM9>#REF!,#REF!,CM9) ->  | CN28: =IF(CN9>#REF!,#REF!,CN9) ->  | CO28: =IF(CO9>#REF!,#REF!,CO9) ->  | CP28: =IF(CP9>#REF!,#REF!,CP9) ->  | CQ28: =IF(CQ9>#REF!,#REF!,CQ9) ->  | CR28: =IF(CR9>#REF!,#REF!,CR9) ->  | CS28: =IF(CS9>#REF!,#REF!,CS9) ->  | CT28: =IF(CT9>#REF!,#REF!,CT9) ->  | CU28: =IF(CU9>#REF!,#REF!,CU9) ->  | CV28: =IF(CV9>#REF!,#REF!,CV9) ->  | CW28: =IF(CW9>#REF!,#REF!,CW9) ->  | CX28: =IF(CX9>#REF!,#REF!,CX9) ->  | CY28: =IF(CY9>#REF!,#REF!,CY9) ->  | CZ28: =IF(CZ9>#REF!,#REF!,CZ9) ->  | DA28: =IF(DA9>#REF!,#REF!,DA9) ->  | DB28: =IF(DB9>#REF!,#REF!,DB9) ->  | DC28: =IF(DC9>#REF!,#REF!,DC9) -> 
C29: Zpráva scénáře | E29: Aktuální hodnoty: | F29: Úspěšné nadstandardní prodeje | G29: Úspěšné standardní prodeje | H29: Neúspěšné období | BZ29: =IF(BZ9>#REF!,BZ9-BV28,0) ->  | CA29: =IF(CA9>#REF!,CA9-BW28,0) ->  | CB29: =IF(CB9>#REF!,CB9-BX28,0) ->  | CC29: =IF(CC9>#REF!,CC9-BY28,0) ->  | CD29: =IF(CD9>#REF!,CD9-BZ28,0) ->  | CE29: =IF(CE9>#REF!,CE9-CA28,0) ->  | CF29: =IF(CF9>#REF!,CF9-CB28,0) ->  | CG29: =IF(CG9>#REF!,CG9-CC28,0) ->  | CH29: =IF(CH9>#REF!,CH9-CD28,0) ->  | CI29: =IF(CI9>#REF!,CI9-CE28,0) ->  | CJ29: =IF(CJ9>#REF!,CJ9-CF28,0) ->  | CK29: =IF(CK9>#REF!,CK9-CG28,0) ->  | CL29: =IF(CL9>#REF!,CL9-CH28,0) ->  | CM29: =IF(CM9>#REF!,CM9-CI28,0) ->  | CN29: =IF(CN9>#REF!,CN9-CJ28,0) ->  | CO29: =IF(CO9>#REF!,CO9-CK28,0) ->  | CP29: =IF(CP9>#REF!,CP9-CL28,0) ->  | CQ29: =IF(CQ9>#REF!,CQ9-CM28,0) ->  | CR29: =IF(CR9>#REF!,CR9-CN28,0) ->  | CS29: =IF(CS9>#REF!,CS9-CO28,0) ->  | CT29: =IF(CT9>#REF!,CT9-CP28,0) ->  | CU29: =IF(CU9>#REF!,CU9-CQ28,0) ->  | CV29: =IF(CV9>#REF!,CV9-CR28,0) ->  | CW29: =IF(CW9>#REF!,CW9-CS28,0) ->  | CX29: =IF(CX9>#REF!,CX9-CT28,0) ->  | CY29: =IF(CY9>#REF!,CY9-CU28,0) ->  | CZ29: =IF(CZ9>#REF!,CZ9-CV28,0) ->  | DA29: =IF(DA9>#REF!,DA9-CW28,0) ->  | DB29: =IF(DB9>#REF!,DB9-CX28,0) ->  | DC29: =IF(DC9>#REF!,DC9-CY28,0) -> 
BZ30: =#REF! ->  | CA30: =#REF! ->  | CB30: =#REF! ->  | CC30: =#REF! ->  | CD30: =#REF! ->  | CE30: =#REF! ->  | CF30: =#REF! ->  | CG30: =#REF! ->  | CH30: =#REF! ->  | CI30: =#REF! ->  | CJ30: =#REF! ->  | CK30: =#REF! ->  | CL30: =#REF! ->  | CM30: =#REF! ->  | CN30: =#REF! ->  | CO30: =#REF! ->  | CP30: =#REF! ->  | CQ30: =#REF! ->  | CR30: =#REF! ->  | CS30: =#REF! ->  | CT30: =#REF! ->  | CU30: =#REF! ->  | CV30: =#REF! ->  | CW30: =#REF! ->  | CX30: =#REF! ->  | CY30: =#REF! ->  | CZ30: =#REF! ->  | DA30: =#REF! ->  | DB30: =#REF! ->  | DC30: =#REF! -> 
F31: Výroba pokryla veškěrý odbyt nad standardní hladinou. | G31: Výroba na standardní hladině | H31: Nerealizované prodeje (nadvýroba).
C32: Měněné buňky:
D33: Vyroba | E33: 80 | F33: 100 | G33: 90 | H33: 80
D34: $E$9 | E34: 60 | F34: 100 | G34: 90 | H34: 60
D35: $E$11 | E35: 5000 | F35: 5000 | G35: 5000 | H35: 5000
C36: Výsledné buňky:
D37: $E$13 | E37: 400000 | F37: 500000 | G37: 450000 | H37: 400000
D38: $E$14 | E38: 8000 | F38: 10000 | G38: 9000 | H38: 8000
C39: Poznámka: Sloupec Aktuální hodnoty představuje hodnoty měněných
C40: buněk v okamžiku, kdy zpráva scénáře byla vytvořena. Měněné buňky
C41: každého scénáře jsou označeny šedě.

Sheet Tip24
A1: ← | C1: Podmíněné formátování
C5: Co chci? | D5: Zvýraznit řádek podle hodnoty v jednom sloupci
C6: Postup | D6: 1. vytvořit tabulku | L6: Řídicí sloupec | M6: Třída 1 | N6: Třída 2
D7: 2. první sloupec je jako řídicí | L7: =RANDBETWEEN(8,18) -> 8 | M7: zelená | N7: zelená
D8: 3. rozhodující je maximální hodnota | L8: =RANDBETWEEN(8,18) -> 15 | M8: modrá | N8: modrá
D9: 4. definuje se podmíněné pravidlo | L9: 11 | M9: bílá | N9: bílá
D10: =$L7=$L$17 | L10: 18 | M10: žlutá | N10: žlutá
D11: 5. pracuje tak, že porovnává buňky od $L7 | L11: 17 | M11: zelená | N11: zelená
D12: s buňkou maxima | L12: 12 | M12: červená | N12: červená
D13: 6. buňky ostatních sloupců aplikují pravidlo ze sousedního sloupce | L13: 8 | M13: modrá | N13: modrá
D14: 7. řídicí by mohl být i jiný sloupec | L14: 18 | M14: bílá | N14: bílá
D15: =$N7=$L$17 | L15: 13 | M15: modrá | N15: modrá
L16: 13 | M16: bílá | N16: bílá
L17: =MAX(L7:L16) -> 18

Sheet Tip25
A1: ← | C1: Funkce POSUN … různě velké oblasti | M1: 0
M2: 1
M3: 2
M4: 3
C5: Co chci? | D5: Sčítat například různě velké oblasti hodnot | M5: 4
D6: Říct, jak velkou oblast použít ve vzorci? | I6: Vyrobené zboží [ks] | J6: Vrácené zboží [ks] | M6: 5
M7: 6
C8: Postup | D8: 1. vytvořit zpracovávaná data | I8: 5 | J8: 5 | M8: 7
D9: 2. definovat jak velkou oblast použít | I9: 2 | J9: 3
D10: kolik řádků použít | G10: 2 | I10: 7 | J10: 4
D11: 3. počet hodnot použít ve funkci POSUN | I11: 1 | J11: 2
D12: 4. funkce vytvoří odkaz na oblast | I12: 2 | J12: 1
D13: 5. tuto oblast umí zpracovat další funkce | I13: 4 | J13: 1
D14: =POSUN(I8;0;0;G10;1) | I14: 5 | J14: 2
D15: =CONCATENATE("Součet prvních ",G10," hodnot =") -> Součet prvních 2 hodnot = | F15: =SUM(OFFSET(I8,0,0,G10,1)) -> 7
D16: =CONCATENATE("Průměr prvních ",G10," hodnot =") -> Průměr prvních 2 hodnot = | F16: =AVERAGE(OFFSET(I8,0,0,G10,1)) -> 3.5
D17: 6. je možné aplikovat také pro tabulku
D18: kolik sloupců použít | G18: 2
D19: =POSUN($I$8;0;0;$G$10;$G$18)
D20: =CONCATENATE("Součet ",G10," řádků a ",G18," sloupců =") -> Součet 2 řádků a 2 sloupců = | F20: =SUM(OFFSET($I$8,0,0,$G$10,$G$18)) -> 15
D21: =CONCATENATE("Průměr ",G10," řádků a ",G18," sloupců =") -> Průměr 2 řádků a 2 sloupců = | F21: =AVERAGE(OFFSET($I$8,0,0,$G$10,$G$18)) -> 3.75
D22: 7. oblast je také možné odsunout od levého horního bodu
D23: 8. použijí se k tomu parametry [řádky], [sloupce] z funkce POSUN(…)
D24: posun shora | F24: 1 | G24: =F24-1 -> 0
D25: posun vpravo | F25: 1 | G25: =F25-1 -> 0
D26: =CONCATENATE("Součet oblasti ",G10,"x",G18) -> Součet oblasti 2x2 | F26: =SUM(OFFSET($I$8,$G$24,$G$25,$G$10,$G$18)) -> 15

Sheet Tip26
A1: ← | C1: Funkce SUMIFS … chytrý součet
C5: Co chci? | D5: Filtrace hodnot podle různých kritérií
O6: ID | P6: Příjmení | Q6: Jméno | R6: PSČ | S6: Město | T6: Prodej | U6: Kusy | V6: Oblast | W6: Kraj | X6: Vzdělání | Y6: Rok naroz. | Z6: Automobil | AA6: Bydlení
O7: 1 | P7: Krajíček | Q7: Vojtěch | R7: 63500 | S7: Brno | T7: 346000 | U7: 4200 | V7: Morava | W7: Jihomoravský | X7: střední škola | Y7: 1985 | Z7: škoda | AA7: RD
C8: Postup | D8: 1. vytvořit zpracovávaná data | O8: 2 | P8: Novák | Q8: Miloslav | R8: 27309 | S8: Kladno | T8: 288000 | U8: 4450 | V8: Čechy | W8: Středočeský | X8: základní škola | Y8: 1990 | Z8: toyota | AA8: byt
D9: 2. získat unikátní hodnoty pro kritéria (nesmí se opakovat) | O9: 3 | P9: Bartoňová | Q9: Magdaléna | R9: 25301 | S9: Hostivice | T9: 281000 | U9: 3920 | V9: Čechy | W9: Středočeský | X9: vysoká škola | Y9: 1994 | Z9: audi | AA9: nájem
D10: 3. vložit ovládací prvky: comboboxy | O10: 4 | P10: Modrá | Q10: Anna | R10: 27735 | S10: Mšeno | T10: 361000 | U10: 3720 | V10: Čechy | W10: Středočeský | X10: vysoká škola | Y10: 1982 | Z10: toyota | AA10: byt
D11: 4. napojit ovládací prvky na data | J11: * | K11: 2 | L11: =INDEX(J11:J13,K11) -> Morava | O11: 5 | P11: Zelený | Q11: Lukáš | R11: 58601 | S11: Jihlava | T11: 360000 | U11: 3710 | V11: Morava | W11: Vysočina | X11: střední škola | Y11: 2000 | Z11: škoda | AA11: RD
D12: 5. dohledat hodnoty kritérií podle indexů z ovladacích prvků | J12: Morava | O12: 6 | P12: Čermák | Q12: Tomáš | R12: 77900 | S12: Olomouc | T12: 372000 | U12: 3250 | V12: Morava | W12: Olomoucký | X12: základní škola | Y12: 1985 | Z12: toyota | AA12: RD
D13: 6. napojit =SUMIFS(…) na kritéria | J13: Čechy | O13: 7 | P13: Kovář | Q13: Matěj | R13: 30100 | S13: Plzeň | T13: 362000 | U13: 3480 | V13: Čechy | W13: Plzeňský | X13: vysoká škola | Y13: 1982 | Z13: audi | AA13: nájem
D14: 7. pro filtrování regionů | O14: 8 | P14: Dvořák | Q14: Jan | R14: 37007 | S14: České Budějovice | T14: 330000 | U14: 5090 | V14: Čechy | W14: Jihočeský | X14: střední škola | Y14: 1992 | Z14: škoda | AA14: nájem
E15: =SUMIFS(T7:T47;V7:V47;"Morava") | J15: * | K15: 17 | L15: =INDEX(J15:J34,K15) -> Ostrava | O15: 9 | P15: Burešová | Q15: Eliška | R15: 43004 | S15: Chomutov | T15: 207000 | U15: 5360 | V15: Čechy | W15: Ústecký | X15: vysoká škola | Y15: 1983 | Z15: volkswagen | AA15: nájem
E16: =SUMIFS(T7:T47;V7:V47;L11) | J16: Brno | O16: 10 | P16: Bílá | Q16: Michaela | R16: 51101 | S16: Turnov | T16: 211000 | U16: 4610 | V16: Čechy | W16: Liberecký | X16: střední škola | Y16: 1998 | Z16: škoda | AA16: nájem
J17: Kladno | O17: 11 | P17: Modrý | Q17: Ladislav | R17: 25244 | S17: Psáry | T17: 273000 | U17: 3270 | V17: Čechy | W17: Středočeský | X17: základní škola | Y17: 1987 | Z17: toyota | AA17: byt
D18: Prodeje: | J18: Hostivice | O18: 12 | P18: Cvach | Q18: Jaroslav | R18: 14000 | S18: Praha 4 | T18: 258000 | U18: 4070 | V18: Čechy | W18: Praha | X18: vysoká škola | Y18: 1982 | Z18: volkswagen | AA18: nájem
D19: Region | F19: =SUMIFS(T7:T47,V7:V47,L11) -> 3618000 | J19: Mšeno | O19: 13 | P19: Štrosmajer | Q19: Jakub | R19: 77900 | S19: Olomouc | T19: 338000 | U19: 5180 | V19: Morava | W19: Olomoucký | X19: střední škola | Y19: 1986 | Z19: škoda | AA19: RD
D20: Region+Město | F20: =SUMIFS($T$7:$T$47,$V$7:$V$47,$L$11,$S$7:$S$47,$L$15) -> 214000 | J20: Jihlava | O20: 14 | P20: Mašek | Q20: Hana | R20: 25601 | S20: Benešov | T20: 267000 | U20: 3240 | V20: Čechy | W20: Středočeský | X20: základní škola | Y20: 1989 | Z20: audi | AA20: byt
D21: Region+Město+Typ bydlení | F21: =SUMIFS($T$7:$T$47,$V$7:$V$47,$L$11,$S$7:$S$47,$L$15,$AA$7:$AA$47,$L$36) -> 214000 | J21: Olomouc | O21: 15 | P21: Čáp | Q21: Ondřej | R21: 39002 | S21: Tábor | T21: 224000 | U21: 3320 | V21: Čechy | W21: Jihočeský | X21: gymnázium | Y21: 1982 | Z21: mercedes | AA21: RD
D22: Region+Město+Typ bydlení+Auto | F22: =SUMIFS($T$7:$T$47,$V$7:$V$47,$L$11,$S$7:$S$47,$L$15,$AA$7:$AA$47,$L$36,Z7:Z47,$L$41) -> 214000 | J22: Plzeň | O22: 16 | P22: Knápková | Q22: Helena | R22: 30100 | S22: Plzeň | T22: 274000 | U22: 4510 | V22: Čechy | W22: Plzeňský | X22: střední škola | Y22: 1981 | Z22: volkswagen | AA22: RD
J23: České Budějovice | O23: 17 | P23: Knap | Q23: Martin | R23: 18000 | S23: Praha 8 | T23: 233000 | U23: 5710 | V23: Čechy | W23: Praha | X23: základní škola | Y23: 1980 | Z23: škoda | AA23: byt
D24: 8. možné použít i ovládací prvek: seznam | J24: Chomutov | O24: 18 | P24: Kozlová | Q24: Aneta | R24: 70800 | S24: Ostrava | T24: 214000 | U24: 5310 | V24: Morava | W24: Moravskoslezský | X24: základní škola | Y24: 1991 | Z24: mercedes | AA24: RD
D25: 9. prvky jsou napojeny na stejná data | J25: Turnov | O25: 19 | P25: Kajman | Q25: Petr | R25: 25301 | S25: Hostivice | T25: 279000 | U25: 5700 | V25: Čechy | W25: Středočeský | X25: střední škola | Y25: 1993 | Z25: volkswagen | AA25: RD
J26: Psáry | O26: 20 | P26: Papoušková | Q26: Lucia | R26: 25244 | S26: Psáry | T26: 313000 | U26: 4750 | V26: Čechy | W26: Středočeský | X26: gymnázium | Y26: 1990 | Z26: mercedes | AA26: RD
J27: Praha 4 | O27: 21 | P27: Žulová | Q27: Veronika | R27: 53353 | S27: Pardubice | T27: 278000 | U27: 5380 | V27: Čechy | W27: Pardubický | X27: základní škola | Y27: 1992 | Z27: škoda | AA27: RD
J28: Benešov | O28: 22 | P28: Syrový | Q28: Ondřej | R28: 51101 | S28: Turnov | T28: 310000 | U28: 5680 | V28: Čechy | W28: Liberecký | X28: vysoká škola | Y28: 1989 | Z28: volkswagen | AA28: nájem
J29: Tábor | O29: 23 | P29: Smrž | Q29: Dušan | R29: 43004 | S29: Chomutov | T29: 344000 | U29: 3390 | V29: Čechy | W29: Ústecký | X29: střední škola | Y29: 1995 | Z29: toyota | AA29: nájem
J30: Praha 8 | O30: 24 | P30: Hřib | Q30: Jakub | R30: 58601 | S30: Jihlava | T30: 287000 | U30: 5380 | V30: Morava | W30: Vysočina | X30: základní škola | Y30: 1980 | Z30: škoda | AA30: RD
J31: Ostrava | O31: 25 | P31: Pekař | Q31: Lukáš | R31: 43004 | S31: Chomutov | T31: 307000 | U31: 4790 | V31: Čechy | W31: Ústecký | X31: vysoká škola | Y31: 1992 | Z31: mercedes | AA31: RD
J32: Pardubice | O32: 26 | P32: Polej | Q32: Jan | R32: 53353 | S32: Pardubice | T32: 215000 | U32: 4860 | V32: Čechy | W32: Pardubický | X32: střední škola | Y32: 1983 | Z32: volkswagen | AA32: byt
J33: Znojmo | O33: 27 | P33: Vysoký | Q33: Bohdan | R33: 30100 | S33: Plzeň | T33: 313000 | U33: 5970 | V33: Čechy | W33: Plzeňský | X33: gymnázium | Y33: 1981 | Z33: škoda | AA33: nájem
J34: Mikulov | O34: 28 | P34: Požárník | Q34: Matyáš | R34: 67128 | S34: Znojmo | T34: 297000 | U34: 5500 | V34: Morava | W34: Vysočina | X34: základní škola | Y34: 1996 | Z34: toyota | AA34: RD
O35: 29 | P35: Celníková | Q35: Volha | R35: 25601 | S35: Benešov | T35: 317000 | U35: 3540 | V35: Čechy | W35: Středočeský | X35: střední škola | Y35: 1989 | Z35: mercedes | AA35: RD
J36: * | K36: 2 | L36: =INDEX(J36:J39,K36) -> RD | O36: 30 | P36: Šimek | Q36: David | R36: 58601 | S36: Jihlava | T36: 221000 | U36: 4660 | V36: Morava | W36: Vysočina | X36: základní škola | Y36: 1988 | Z36: volkswagen | AA36: nájem
J37: RD | O37: 31 | P37: Skřehotal | Q37: Miroslav | R37: 69201 | S37: Mikulov | T37: 215000 | U37: 3740 | V37: Morava | W37: Jihomoravský | X37: gymnázium | Y37: 1999 | Z37: škoda | AA37: RD
J38: byt | O38: 32 | P38: Jelen | Q38: Josef | R38: 53353 | S38: Pardubice | T38: 215000 | U38: 3730 | V38: Čechy | W38: Pardubický | X38: gymnázium | Y38: 1981 | Z38: mercedes | AA38: RD
J39: nájem | O39: 33 | P39: Sytá | Q39: Veronika | R39: 61200 | S39: Brno | T39: 224000 | U39: 5220 | V39: Čechy | W39: Jihomoravský | X39: základní škola | Y39: 1984 | Z39: volkswagen | AA39: nájem
O40: 34 | P40: Sojka | Q40: Jan | R40: 67128 | S40: Znojmo | T40: 341000 | U40: 5240 | V40: Morava | W40: Vysočina | X40: gymnázium | Y40: 1991 | Z40: škoda | AA40: RD
J41: * | K41: 6 | L41: =INDEX(J41:J46,K41) -> mercedes | O41: 35 | P41: Tranovský | Q41: Patrik | R41: 25601 | S41: Benešov | T41: 245000 | U41: 4800 | V41: Čechy | W41: Středočeský | X41: střední škola | Y41: 1998 | Z41: volkswagen | AA41: byt
J42: škoda | O42: 36 | P42: Vančura | Q42: David | R42: 25244 | S42: Psáry | T42: 324000 | U42: 4930 | V42: Čechy | W42: Středočeský | X42: gymnázium | Y42: 1996 | Z42: audi | AA42: nájem
J43: toyota | O43: 37 | P43: Dřevitá | Q43: Kateřina | R43: 51101 | S43: Turnov | T43: 201000 | U43: 4750 | V43: Čechy | W43: Liberecký | X43: základní škola | Y43: 1984 | Z43: toyota | AA43: byt
J44: audi | O44: 38 | P44: Říhal | Q44: Tomáš | R44: 69201 | S44: Mikulov | T44: 314000 | U44: 5780 | V44: Morava | W44: Jihomoravský | X44: gymnázium | Y44: 1994 | Z44: volkswagen | AA44: nájem
J45: volkswagen | O45: 39 | P45: Gott | Q45: Matěj | R45: 67128 | S45: Znojmo | T45: 313000 | U45: 4750 | V45: Morava | W45: Jihomoravský | X45: gymnázium | Y45: 1985 | Z45: mercedes | AA45: nájem
J46: mercedes | O46: 40 | P46: Pondělní | Q46: Lucie | R46: 53353 | S46: Pardubice | T46: 330000 | U46: 4950 | V46: Čechy | W46: Pardubický | X46: základní škola | Y46: 1989 | Z46: volkswagen | AA46: byt
O47: 41 | P47: Teplá | Q47: Nikol | R47: 25601 | S47: Benešov | T47: 283000 | U47: 4370 | V47: Čechy | W47: Středočeský | X47: střední škola | Y47: 1983 | Z47: škoda | AA47: RD

Sheet Tip27
A1: ← | C1: Paste jako transformace se vzorci
C5: Co chci? | D5: Převést vodorovný kopírovaný řádek na svislý
D6: Včetně zachování odkazů na původní buňky
C8: Postup | D8: 1. vybrat vodorovný řádek jako oblast ke kopírování
D9: 2. stisknout tlačítko Transformace…
D10: 3. zadat řádek a sloupec pro výsledné umístění nové oblasti
D11: 4. vodorovná oblast se převede na svislou
D12: 5. ve svislé pblasti jsou odkazy na původní buňky
D13: 6. pozor na přepsání dat! Operace nemá Undo!!!
F15: 1.1 | G15: 3.7 | H15: 0.6 | I15: 0 | J15: 1.6 | K15: 0.3 | L15: 2.1
E16: 2 | F16: =RAND()*(F15*(1+$E$16)-F15*(1-$E$16))+F15 *(1-$E$16) -> 1.424444243 | G16: 5.906199073 | H16: 0.9804226072 | I16: 0 | J16: -1.241661361 | K16: 0.1623123017 | L16: -0.9404957996
J28: =$H$15 -> 0.6

Sheet Tip28
A1: ¬ | C1: Nepřímý odkaz (Indirect)
B4: Co chci? | C4: Použití, když se odkaz mění.
C5: Použití, když odkaz není dopředu znamý
B9: Postup: | C9: 1. Pomocí ověření dat získat název listu | I9: Led | K9: Led
C10: 2. Z názvu sestavit odkaz na list a buňku | I10: =I9&"!D8" -> Led!D8 | K10: Uno
C11: 3. Odkaz použít jako argument | E11: =NEPŘÍMÝ.ODKAZ(I10) | I11: =INDIRECT(I10) -> 1100 | K11: Bre
B14: Co chci? | C14: Kopírovat vzorec přes listy
B15: Postup: | C15: 1. Tradičním postupem vzorec | E15: =Led!D8
C16: 2. …vznikne toto: | E16: =Led!D8
E17: =Led!D9
E18: =Led!D10
C19: 3. Pokud potřebuji měnit jména listů použiji
E20: =NEPŘÍMÝ.ODKAZ(K9&"!D8") | H20: =INDIRECT(K9&"!D8") -> 1100
E21: =NEPŘÍMÝ.ODKAZ(K10&"!D8") | H21: =INDIRECT(K10&"!D8") -> 910
E22: =NEPŘÍMÝ.ODKAZ(K11&"!D8") | H22: =INDIRECT(K11&"!D8") -> 1370
B25: Co chci? | C25: Součet proměnné oblasti v tabulce
B26: Postup: | C26: 1. Pomocí ověření dat získat název Měsíce a Jména
D27: Měsíc: | E27: Bre | F27: =MATCH(E27,I30:K30,) -> 3
D28: Jméno: | E28: Beta | F28: =MATCH(E28,H31:H34,0) -> 2
C29: 2. Sestaví se odkaz na oblast jako R1C1
E30: ="R31C9:"&"R"&30+F28&"C"&8+F27 -> R31C9:R32C11 | I30: Led | J30: Uno | K30: Bre
C31: 3. Odkaz použít jako argument | H31: Alfa | I31: 7 | J31: 5 | K31: 2
D32: =SUMA(NEPŘÍMÝ.ODKAZ(E30;NEPRAVDA)) | H32: Beta | I32: 8 | J32: 4 | K32: 4
D33: ="Suma: Alfa-"&E28&";Led-"&E27 -> Suma: Alfa-Beta;Led-Bre | E33: =SUM(INDIRECT(E30,FALSE)) -> 30 | H33: Gama | I33: 9 | J33: 3 | K33: 6
H34: Delta | I34: 6 | J34: 4 | K34: 8
B36: Co chci? | C36: Hledání v tabulce
B37: Postup: | C37: 1. Pomocí ověření dat získat Prodejce z TabProd1
C38: 2. V ověření dat je vzorec
D39: =NEPŘÍMÝ.ODKAZ("TabProd1[Prodejce]") | H39: ID | I39: Prodejce | J39: Jméno | K39: PSČ | L39: Sídlo | M39: Prodaný objem Kč
C40: 3. Pro hledání se použije =SVYHLEDAT | H40: 1 | I40: Ašenbrener | J40: Vojtěch | K40: 63500 | L40: Brno | M40: 346000
C41: 4. Prohledávájí se sloupce: | E41: [Prodejce]:[Prodaný objem Kč] | H41: 2 | I41: Barták | J41: Miloslav | K41: 27309 | L41: Kladno | M41: 288000
C42: 5. Hledá se ve sloupečku 3 | H42: 3 | I42: Bartáková | J42: Magdaléna | K42: 25301 | L42: Hostivice | M42: 281000
D43: Jmeno prodejce | E43: Ašenbrener
D44: Dohledané PSČ: | E44: =VLOOKUP(E43,TabProd1[[Prodejce]:[Prodaný objem Kč]],3,FALSE) -> 63500
C45: 6. Případně prohledat zvolený sloupec:
E46: Jméno | F46: =MATCH(E46,TabProd1[[#Headers],[Prodejce]:[Prodaný objem Kč]],0) -> 2
E47: =VLOOKUP(E43,TabProd1[[Prodejce]:[Prodaný objem Kč]],F46,FALSE) -> Vojtěch
C48: 7. Výsledek zformátovat jako:
D49: ="Prodejce" & E43 & " má " & E46 & " : " &E47 -> Prodejce Ašenbrener má Jméno : Vojtěch
C50: 8. Přidáním nového Prodejce (řádku) se aktualizuje Ověření dat (bod 2)

Sheet Tip29
A1: ¬ | C1: Porovnání odkazů Inquire + xlCompare
B4: Co chci? | C4: Porovnat rozdíly dvou souborů XLS
C5: Funguje pouze v MS Excel Proffesional Plus a Office 365
B9: Postup: | C9: 1. Doplně lze zapnout dodatečně
C10: 2. Příkaz Soubor/Možnost/Doplňky
C11: 3. Zvolit Doplňky modelu COM
C12: 4. Stisknout Přejít
C13: 5. Vybrat Inquire ze seznamu
C19: 6. Pracovní lišta doplňku
C24: 7. Musí být otevřeny dva soubory
C25: 8. Pomocí Compare Files se zobrazí rozdíly
C46: 9. Dohledává vazby mezi soubory
D47: Workbook Relationship
C48: 10. Dohledává vazby v rámci sešitu
D49: Worksheet Relationship
C62: 11. Dohledává vazby buňky
D63: Cell Relationship
C75: 12. Výsledek porovnání jak report:
F76: Differences
F77: Sheet | G77: Range | H77: Old Value | I77: New Value | J77: Description
F78: List2 | J78: Deleted Sheet From Position 2.
F79: List1 | J79: Deleted Rows 6:7.
F80: List1 | J80: Added Row 2.
F81: List1 | G81: C7 | H81: ='C:\Users\dlaskpet\Documents\[New.xlsx]List1'!$C$7 | I81: ='C:\Users\dlaskpet\Documents\[Old.xlsx]List1'!$E$18 | J81: Formula Changed.
F82: List1 | G82: A1 | H82: 111 | I82: 222 | J82: Entered Value Changed.
F83: List1 | G83: A2 | I83: 333 | J83: Entered Value Added.
F84: <Workbook> | H84: C:\Users\dlaskpet\Documents\New.xlsx | I84: C:\Users\dlaskpet\Documents\Old.xlsx | J84: External Link Changed.
B89: Co chci: | C89: Porovnání pomocí xlCompare trial version
B90: Postup: | C90: 1. xlCompare možno stáhnout zde:
D91: https://spreadsheettools.com/spreadsheet-compare.html
C92: 2. Otevřít dva soubory k porovnání
C93: 3. Stisknout Compare Files
C94: 4. Aplikace umí předávat změněné řádky
C95: 5. Je možné
C96: - slučovat dokumenty
C97: - porovnávat VBA projekty
C98: - porovnávat Tabulky
C99: - porovnávat pojmenované oblasti
C116: 6. Je možné sestavovat reporty

Sheet HiddenTemplate (hidden)
C3: Odkaz na jiný list
D4: ='Tip15'!D4 -> New1
C13: Back to Tip15
